{"text_format":"1","workbook":"xlsx","n_sheets":14,"sheets":["HOME","INFO","E1","E2","E3","E4","E5","E6","E7","E8","E9","E10","RESULTADOS","SOBRE"],"not_rendered":{"charts":11,"images":31,"macros":1,"external_links":0,"defined_names":14,"comments":0,"pivot_tables":0},"unopened":[],"bounds":{"document_bytes":16777216,"sheet_cells":100000,"rows_first":2000,"rows_last":500,"rows_between":2000,"halvings":0,"cell_chars":16384,"cell_head_chars":4096},"cells_cut":0,"cells_raw":0,"read":"whole","date_system":"1900"}

{"sheet":"HOME","index":0,"n_rows":0,"n_cols":0,"rows_kept":0,"cut":false,"hidden":false,"merged":[]}

{"sheet":"INFO","index":1,"n_rows":39,"n_cols":3,"rows_kept":39,"cut":false,"hidden":false,"merged":[[38,0,38,2],[39,0,39,2],[2,0,2,1],[3,0,3,1],[4,0,4,1],[5,0,5,1],[6,0,6,1],[37,0,37,2],[31,0,31,1],[32,0,32,1],[33,0,33,1],[34,0,34,1],[35,0,35,1]]}
[]
[]
["Avaliação",null,"Resposta"]
["Nome da Cidade"]
["Tipo de cidade (município, áreas metropolitanas, etc.)"]
["País"]
["Data de avaliação"]
[]
["Perfil da Cidade (obrigatório)","Resposta","Fonte Data"]
["Título do mais alto nível de autoridade (por exemplo Prefeito, etc)"]
["População total da cidade:"]
["Cidade quilômetros quadrados:"]
["Densidade populacional (por km²): "]
["População que são jovens (15-24) (%):"]
["População que são idosos (65+) (%):"]
["Sexo (famílias chefiadas por mulheres):"]
["Taxa de alfabetização (% população instruída):"]
["Taxa de pobreza (% população pobre):"]
["Avaliação da renda familiar (R$):"]
["Residentes que não são cidadãos (%):"]
["O mais (provável) risco de desastre que é conhecido: "]
["O desastre mais grave (conhecido): "]
[]
["Perfil da Cidade (Opcional)","Resposta","Fonte Data"]
["Número total de domicílios: "]
["Pessoas por unidade:"]
["Custo de vida (R$):"]
["PIB per capita do país (R$)"]
["Coeficiente de Gini:"]
["PIB per capita da cidade (R$):"]
[]
["Redução de Risco de Desastres do Governo Local e  Equipe da Resiliência",null,"Resposta"]
["Nome da pessoa que conduz / coordena a conclusão da avaliação do Scorecard:"]
["Organização: "]
["Detalhes do contato:"]
["Vontade de partilhar resultados ou ser usado como um exemplo / estudo de caso do UNISDR e parceiros:"]
[]
["Informação das partes interessadas"]
["Por favor, liste abaixo todas as partes interessadas que apoiaram esta avaliação."]

{"sheet":"E1","index":2,"n_rows":35,"n_cols":4,"rows_kept":35,"cut":false,"hidden":false,"merged":[[30,2,33,3],[34,0,34,1],[35,0,35,1],[23,0,23,1],[24,0,24,1],[27,2,27,3],[28,2,28,3],[29,0,29,1],[29,2,29,3],[28,0,28,1],[16,2,16,3],[17,2,17,3],[18,0,18,1],[18,2,18,3],[19,2,22,3],[17,0,17,1],[2,0,2,1],[6,2,6,3],[5,2,5,3],[7,2,7,3],[8,2,11,3],[7,0,7,1],[6,0,6,1],[4,0,4,1],[15,0,15,1],[26,0,26,1],[5,0,5,1],[16,0,16,1],[27,0,27,1],[12,0,12,1],[13,0,13,1]]}
[]
[]
[]
[]
["P1.1 - Realização de planos"]
["Questão",null,"Comentários"]
["O plano diretor da cidade (ou plano / estratégia relevante) inclui abordagens para a redução do risco de desastres, e eles são aplicados de acordo com a Estrutura de Sendai?\nEm geral, com 'plano' entendemos algum tipo de plano, visão ou estratégia transversal da cidade. Este poderia ser um plano sobre o espaço geográfico, um plano de infraestrutura ou um plano ambiental ou de sustentabilidade que atenda aos critérios estabelecidos no parágrafo 27 (b) do Marco de Sendai.\nComo alternativa, se uma cidade tiver uma política / estratégia / plano autônomo, de acordo com as estratégias em nível nacional, ela também pode demonstrar conformidade com qualquer um desses critérios.\nPara demonstrar conformidade (conformidade), o plano deve cobrir os pontos de todos os dez aspectos essenciais.",null,"Para cumprir o parágrafo 27 (b) da Estrutura de Sendai, uma estratégia local relevante deve incluir o seguinte:\n- Prazos e metas\n- Indicadores\n- Objetivos e medidas que visam evitar a criação de riscos\n- Objetivos e medidas que visam reduzir o risco existente\n- Objetivos e medidas que buscam fortalecer a resiliência econômica, social, de saúde e ambiental.\nA estratégia deve também cobrir os dez pontos essenciais da campanha \"Developing Resilient Cities\"."]
["Resposta",null,"Fornecer meios de verificação (explicação e evidência)"]
[null,"3 - Um plano que se incorpora plenamente a redução de riscos de desastres, em conformidade com o Marco de Sendai, no qual abrange todos os dez passos essenciais."]
[null,"2 - Um plano autônomo sobre a redução do risco de desastes, em conformidade com o Marco de Sendai, no qual se abordam todos os dez passos essenciais."]
[null,"1 - Planos com uma conformidade parcial com o Marco de Sendai e que abrangem alguns dos dez passos essenciais."]
[null,"0 - Não há planos/conformidade."]
["Ações para alcançar a máxima resiliência",null,"Instituição responsável","Escala de tempo"]
[]
[]
["P1.2 - Organização, coordinação e participação"]
["Questão",null,"Comentários"]
["Existe um mecanismo interinstitucional / setorial com a autoridade e recursos relevantes para abordar a redução do risco de desastres?",null,"Refletir sobre as respostas antes, durante e depois de um desastre. Existe um organograma claro de todas as agências para redução do risco de desastres? Cada agência ou entidade tem uma função clara e documentada e você concordou em cumprir essa função? Uma alocação orçamentária clara é estabelecida para funções de coordenação? "]
["Resposta",null,"Fornecer meios de verificação (explicação e evidência)"]
[null,"3 - Todas as agências principais estão muito bem estabelecidas, contam com a autoridade e os recursos adequados paa tomar medidas em todas as etapas da Redução de Riscos de Desastres."]
[null,"2 - Todas as agências principais estão muito bem estabelecidas, contam com a autoridade e os recursos adequados paa tomar medidas, mas há inconsistências na alocação de recursos ao longo dos principais estágios de redução do risco de desastres. "]
[null,"1 - As equipes da cidade tem autoridade e poder de convocação, mas não tem o apoio interinstitucional necessário nem recursos suficientes."]
[null,"0 - As principais agências precisam da autoridade necessária e de recursos suficientes."]
["Ações para alcançar a máxima resiliência",null,"Instituição responsável","Escala de tempo"]
[]
[]
["P1.3 - Integração"]
["Questão",null,"Comentários"]
["A resiliência está adequadamente integrada a outras funções essenciais / portfólios de projetos da cidade? (Por exemplo, planejamento, sustentabilidade, aprovação de projetos de investimento, finanças e conformidade, participação da comunidade, gerenciamento de emergência, conformidade de código, gerenciamento de infraestrutura, comunicações, etc.)",null,"A resiliência a desastres é considerada um aspecto rotineiro que faz parte dos processos de tomada de decisões e orçamentos do dia-a-dia, em vez de um assunto separado e não relacionado às atividades diárias do governo? "]
["Resposta",null,"Fornecer meios de verificação (explicação e evidência)"]
[null,"3 - Pontos para tomar decisões explícitas ou semi-explícitas de resiliência dentro de um ou vários processos de tomada de decisão, aplicados a todas a políticas e orçamentos propostos em todas as áres funcionais relevantes."]
[null,"2 - Embora não haja um processo formal, é geralmente entendido que os benefícios da resiliência a desastres são \"úteis\" para uma proposta, na maioria das áreas."]
[null,"1 - Se aplica de vez em quando, conforme necessário."]
[null,"0 - Não se aplica a todos."]
["Ações para alcançar a máxima resiliência",null,"Instituição responsável","Escala de tempo"]

{"sheet":"E2","index":3,"n_rows":57,"n_cols":4,"rows_kept":57,"cut":false,"hidden":false,"merged":[[40,0,40,1],[40,2,40,3],[19,2,22,3],[23,0,23,1],[24,0,24,1],[27,2,27,3],[28,2,28,3],[29,0,29,1],[29,2,29,3],[30,2,33,3],[34,0,34,1],[39,2,39,3],[26,0,26,1],[37,0,37,1],[39,0,39,1],[56,0,56,1],[57,0,57,1],[41,2,44,3],[45,0,45,1],[46,0,46,1],[49,2,49,3],[50,2,50,3],[51,0,51,1],[51,2,51,3],[49,0,49,1],[48,0,48,1],[50,0,50,1],[52,2,55,3],[2,0,2,1],[5,2,5,3],[6,2,6,3],[7,0,7,1],[7,2,7,3],[4,0,4,1],[6,0,6,1],[8,2,11,3],[5,0,5,1],[16,0,16,1],[27,0,27,1],[38,0,38,1],[12,0,12,1],[13,0,13,1],[16,2,16,3],[17,2,17,3],[18,0,18,1],[18,2,18,3],[15,0,15,1],[35,0,35,1],[38,2,38,3],[28,0,28,1],[17,0,17,1]]}
[]
[]
[]
[]
["P2.1 - Avaliação da ameaça"]
["Questão",null,"Comentários"]
["A cidade tem conhecimento das principais ameaças que enfrenta, bem como a sua probabilidade de ocorrência?",null,"Nota: O uso da ferramenta para um cálculo rápido de risco (QRE) pode apoiar a avaliação feita com base nesses critérios.\nPara cada ameaça, as consequências \"mais provável\" e \"mais grave\" devem ser identificadas, no mínimo?"]
["Resposta",null,"Fornecer meios de verificação (explicação e evidência)"]
[null,"3 - A cidade compreende as principais ameaças.  Os dados sobre estas ameaças são atualizados a intervalos acordados."]
[null,"2 - A cidade compreende as principais ameaças, mas não há planos acordados para atualizar estas informações."]
[null,"1 - Existem dados sobre a maioria das principais ameaças."]
[null,"0 - Não se compreende muito bem as ameças."]
["Ações para alcançar a máxima resiliência",null,"Instituição responsável","Escala de tempo"]
[]
[]
["P2.2 - Compreensão compartilhada do risco na infraestrutura"]
["Questão",null,"Comentários"]
["Existe uma compreensão compartilhada do risco entre a cidade e os diferentes prestadores de serviços básicos e outras agências nacionais e regionais que desempenham algum papel na gestão de infraestrutura, como eletricidade, água, estradas e trens, em termos de pontos de tensão nos sistemas e os riscos existentes na área da cidade?",null,"Existe um fórum estabelecido entre as diferentes instituições para avaliar questões de infraestrutura e resiliência operacional? A cidade realiza um inventário / mapa exaustivo de toda a infraestrutura vital? A cidade está fazendo investimentos suficientes para a manutenção e modernização de sua infraestrutura vital?\nEste critério deve ter em conta todos os serviços básicos públicos e privados, mas também pode ser alargado para incluir, por exemplo, empresas de transporte, fornecedores de combustível, operadores portuários, companhias aéreas de carga, sindicatos, etc.\nO aspecto essencial 8 cobre a infraestrutura em detalhes."]
["Resposta",null,"Fornecer meios de verificação (explicação e evidência)"]
[null,"3 - Existe uma compreensão compartilhada do risco entre a cidade e os diferentes prestadores de serviços básicos - Os pontos de estresse e interdependências dentro do sistema/riscos na área da cidade são reconhecidos?"]
[null,"2 - Há alguma socialização da informação sobre o risco entre a cidade e diferentes provedores de serviços básicos, bem como um certo grau de consenso sobre os pontos de estresse."]
[null,"1 - Os riscos dos sistemas individuais são conhecidos, mas não se conta com um foro para compartilhá-los ou compreender os efeitos em cascata."]
[null,"0 - Existem vazios consideráveis na compreenção do risco, ao mesmo nível dos sistemas individuais (por exemplo, eletrecidade, água, transporte, etc.)."]
["Ações para alcançar a máxima resiliência",null,"Instituição responsável","Escala de tempo"]
[]
[]
["P2.3 - Conhecimento sobre exposição e vulnerabilidade"]
["Questão",null,"Comentários"]
["Foram acordados cenários em que a exposição e a vulnerabilidade da cidade a cada ameaça ou grupos de ameaças são levantadas (veja o ponto anterior)?",null,"Cenários são descrições do impacto total de uma ameaça em uma cidade.\nNota: O uso da ferramenta para um cálculo rápido de risco (QRE) pode apoiar a avaliação feita com base nesses critérios."]
["Resposta",null,"Fornecer meios de verificação (explicação e evidência)"]
[null,"3 - Uma série integral de cenários de desastre está disponível, com informações básicas relevantes e notas de apoio. Isso é atualizado em intervalos acordados."]
[null,"2 - Uma série integral de cenários de desastre está disponível, mas não há informações de fundo relevantes ou notas de suporte para dar suporte a esses cenários."]
[null,"1 - Algumas informações sobre os cenários de desastres estão disponíveis."]
[null,"0 - Não há nenhuma disponibilidade de informação sobre cenários de desastres."]
["Ações para alcançar a máxima resiliência",null,"Instituição responsável","Escala de tempo"]
[]
[]
["P2.4 - Efeitos em cascata"]
["Questão",null,"Comentários"]
["Existe um entendimento coletivo dos possíveis fracassos em cascata entre os diferentes sistemas da cidade e a infraestrutura sob diferentes cenários?",null,"\"Falhas em cascata\" entre diferentes elementos da infraestrutura de uma cidade (por exemplo, quando uma falha no sistema de energia elétrica gera falhas no tratamento da água) pode representar uma vulnerabilidade crítica e pode ser escondida a menos que seja identificada de forma específica e, portanto, pode se tornar um choque prematuro ao responder a um desastre."]
["Resposta",null,"Fornecer meios de verificação (explicação e evidência)"]
[null,"3 -  Uma compreensão relativamente total / coletiva sobre os efeitos em cascata sob vários cenários de desastres."]
[null,"2 - Uma compreensão relativamente total/coletiva sobre os efeitos em cascata sob alguns cenários de desastres."]
[null,"1 - Certa compreensão sobre os efeitos em cascata sob alguns cenários de desastres."]
[null,"0 - Não existe uma clara compreensão sobre os efeitos em cascata."]
["Ações para alcançar a máxima resiliência",null,"Instituição responsável","Escala de tempo"]
[]
[]
["P2.5 - Apresentação e atualização do processo de informação de risco"]
["Questão",null,"Comentários"]
["Existem mapas claros sobre ameaças e dados sobre risco? Eles são atualizados regularmente?",null,"No mínimo, essas atualizações devem ser feitas com a frequência necessária para acompanhar magnitude das mudanças urbanas e as visões variávevis em torno do risco. Muitos países procuram atualizar a informação a cada cinco anos, mas é improvável que este período seja adequado."]
["Resposta",null,"Fornecer meios de verificação (explicação e evidência)"]
[null,"3 - Existem mapas de alta qualidade para a maioria das ameças e estas são atualizadas com regularidade (a intervalos acordados)."]
[null,"2 - Existem mapas para a maioria das ameças, mas não se sabe se há planos para atualizá-los."]
[null,"1 - Existem mapas para algumas ameaças."]
[null,"0 - Não existem mapas sobre ameaças."]
["Ações para alcançar a máxima resiliência",null,"Instituição responsável","Escala de tempo"]

{"sheet":"E3","index":4,"n_rows":46,"n_cols":4,"rows_kept":46,"cut":false,"hidden":false,"merged":[[17,0,17,1],[15,0,15,1],[28,0,28,1],[26,0,26,1],[39,0,39,1],[37,0,37,1],[27,2,27,3],[28,2,28,3],[41,2,44,3],[45,0,45,1],[46,0,46,1],[30,2,33,3],[34,0,34,1],[35,0,35,1],[38,2,38,3],[39,2,39,3],[40,0,40,1],[40,2,40,3],[2,0,2,1],[5,2,5,3],[6,2,6,3],[7,0,7,1],[7,2,7,3],[4,0,4,1],[6,0,6,1],[8,2,11,3],[5,0,5,1],[16,0,16,1],[27,0,27,1],[38,0,38,1],[29,0,29,1],[29,2,29,3],[12,0,12,1],[13,0,13,1],[16,2,16,3],[17,2,17,3],[18,0,18,1],[18,2,18,3],[19,2,22,3],[23,0,23,1],[24,0,24,1]]}
[]
[]
[]
[]
["P3.1 - Conhecimento sobre abordagens para atrair novos investimentos na cidade"]
["Questão",null,"Comentários"]
["A cidade / agências principais compreendem todas as fontes de financiamento e os \"dividendos de resiliência\" estão bem inter-relacionados. Todos os caminhos disponíveis para atrair financiamento externo também são compreendidos e os fundos estão sendo ativamente procurados para fazer investimentos significativos em resiliência.",null,"Entre os exemplos, podemos mencionar:\nArrendamento\nSubsídios do governo.\nObrigações de impacto social ou resiliência.\nBancos de desenvolvimento e organizações de ajuda.\nFundações\nOutras entidades governamentais que poderiam ter relevância para certos aspectos da resiliência.\nIniciativas de financiamento coletivo (\"crowdfunding\").\nParcerias público-privadas\nImpostos e sobretaxas.\nOs \"dividendos da resiliência\" - que às vezes são chamados de benefícios conjuntos - surgem de duas maneiras:\nDividendos \"Inbound\" - quando os investimentos em outras partes da cidade geram benefícios adicionais de resiliência.\nDividendos \"de saída\" - quando um investimento em resiliência também gera algum benefício adicional."]
["Resposta",null,"Fornecer meios de verificação (explicação e evidência)"]
[null,"3 - A cidade compreende todas as vias disponíveis para obter fundos para realizar atividades destinadas à redução do risco de desastres, está buscando ativamente várias dessas fontes de financiamento e obteve algum sucesso."]
[null,"2 - A cidade está ciente de inúmeras maneiras de obter fundos para realizar atividades destinadas a reduzir o risco de desastres e está buscando ativamente várias dessas fontes de financiamento."]
[null,"1 - Embora haja conhecimento sobre os canais de financiamento, o panorama geral é incompleto e muito pouco é feito para procurar esses fundos."]
[null,"0 - Há muito pouco conhecimento/compreensão sobre as fontes de financiamento disponíveis para a redução do risco de desastres."]
["Ações para alcançar a máxima resiliência",null,"Instituição responsável","Escala de tempo"]
[]
[]
["P3.2 - Orçamento e plano de financiamento para resiliência, incluindo fundos de contingência"]
["Questão",null,"Comentários"]
["A cidade possui recursos e mecanismos protegidos específicos para fundos de contingência para redução do risco de desastres em nível local (mitigação, prevenção, resposta e recuperação)?",null,"Neste ponto, é essencial avaliar a existência e o tamanho do orçamento e as medidas de proteção estabelecidas para que esses fundos não sejam desviados para outros fins."]
["Resposta",null,"Fornecer meios de verificação (explicação e evidência)"]
[null,"3 - O plano financeiro da cidade é integral em relação à redução do risco de desastres. Os orçamentos estão protegidos e já existem planos de contingência estabelecidos."]
[null,"2 - O plano financeiro da cidade permite a realização de atividades para a redução do risco de desastres e os orçamentos são protegidos."]
[null,"1 - Existem alguns planos em diferentes agências/organizações, mas eles não se coordenam."]
[null,"0 - Não há nenhuma plano claro."]
["Ações para alcançar a máxima resiliência",null,"Instituição responsável","Escala de tempo"]
[]
[]
["P3.3 - Seguros"]
["Questão",null,"Comentários"]
["Que nível de cobertura existe em todos os diferentes setores da cidade - empresas, negócios e comunidade?",null,"Esta avaliação abrange tanto a adequação da cobertura (o seguro pagaria uma quantia suficiente?) E o grau de cobertura (há pessoas suficientes e empresas seguradas?)\nConsidere os níveis de seguro para o seguinte:\nHabitação, conteúdo e transporte pessoal (por exemplo, seguro de carro).\nInfraestrutura comercial e pública.\n\nSeguro de saúde pessoal não está incluído."]
["Resposta",null,"Fornecer meios de verificação (explicação e evidência)"]
[null,"3 - A utilização de produtos de seguros em todos os setores/serviços é alta."]
[null,"2 - O nível de seguro varia consideravelmente por setor ou por área. A cidade promove ativamente a cobertura de seguros em todos os setores."]
[null,"1 - O nível de seguro varia consideravelmente por setor ou por área. A cidade não está promovendo ativamente o uso de produtos de seguro."]
[null,"0 - Existe pouca ou nenhuma cobertura de seguros na cidade."]
["Ações para alcançar a máxima resiliência",null,"Instituição responsável","Escala de tempo"]
[]
[]
["P3.4 - Incentivos"]
["Questão",null,"Comentários"]
["Que incentivos existem para diferentes setores e segmentos de empresas e da sociedade, a fim de apoiar o aumento da resiliência?"]
["Resposta",null,"Fornecer meios de verificação (explicação e evidência)"]
[null,"3 - Existe uma variedade de incentivos em todos os setores para aumentar a resiliência e estes satisfazem as necessidades identificadas."]
[null,"2 - Existe uma variedade de incentivos em todos os setores para aumentar a resiliência, mas certas lacunas/oportunidades foram identificados."]
[null,"1 - Existem alguns incentivos, mas são dispersos."]
[null,"0 - Existem poucos ou nenhum incentivo."]
["Ações para alcançar a máxima resiliência",null,"Instituição responsável","Escala de tempo"]

{"sheet":"E4","index":5,"n_rows":46,"n_cols":4,"rows_kept":46,"cut":false,"hidden":false,"merged":[[15,0,15,1],[17,0,17,1],[28,0,28,1],[26,0,26,1],[39,0,39,1],[37,0,37,1],[27,2,27,3],[28,2,28,3],[41,2,44,3],[45,0,45,1],[46,0,46,1],[30,2,33,3],[34,0,34,1],[35,0,35,1],[38,2,38,3],[39,2,39,3],[40,0,40,1],[40,2,40,3],[2,0,2,1],[5,2,5,3],[6,2,6,3],[7,0,7,1],[7,2,7,3],[6,0,6,1],[4,0,4,1],[8,2,11,3],[5,0,5,1],[16,0,16,1],[27,0,27,1],[38,0,38,1],[29,0,29,1],[29,2,29,3],[12,0,12,1],[13,0,13,1],[16,2,16,3],[17,2,17,3],[18,0,18,1],[18,2,18,3],[19,2,22,3],[23,0,23,1],[24,0,24,1]]}
[]
[]
[]
[]
["P4.1 - Zoneamento"]
["Questão",null,"Comentários"]
["A cidade é adequadamente zoneada, levando em conta, por exemplo, o impacto de cenários de risco relevantes em atividades econômicas, produção agrícola e centros populacionais?",null,"Deslocamento por três meses ou mais, porque as casas foram destruídas ou consideradas inabitáveis, ou a área onde estão localizadas é inabitável.\nEssa avaliação deve também cobrir assentamentos informais e não planejados.\nIdealmente, a eficácia do zoneamento deve ser validada independentemente (veja também o Passo 2)."]
["Resposta",null,"Fornecer meios de verificação (explicação e evidência)"]
[null,"3 - A cidade é zoneada de acordo com a ordem territorial e isso mantém uma relação adequada com o mapeamento de risco e risco (ver Passo 2). O zoneamento é atualizado em intervalos acordados."]
[null,"2- A cidade é zoneada de acordo com a ordem territorial e isso tem uma relação geral com o mapeamento de riscos e riscos (ver Passo 2). Planos para atualizar o zoneamento não são bem compreendidos."]
[null,"1 - O zoneamento não é comleto e não é revisado com regularidade com relação as ameaças/riscos."]
[null,"0 - Não se conhece/não há um claro zoneamento."]
["Ações para alcançar a máxima resiliência",null,"Instituição responsável","Escala de tempo"]
[]
[]
["P4.2 - Novo desenvolvimento urbano"]
["Questão",null,"Comentários"]
["As abordagens são promovidas através da concepção e realização de um novo desenvolvimento urbano para promover a resiliência?",null,"Existe alguma política que promova medidas físicas no novo desenvolvimento para aumentar a resiliência em face de uma ou várias ameaças (por exemplo, o local apropriado para novos desenvolvimentos, desenho urbano sensível à água, integração adequada de áreas de refugiados devido a desastres, vias de acesso e saída adequadas (ruas largas), etc.)."]
["Resposta",null,"Fornecer meios de verificação (explicação e evidência)"]
[null,"3 - Existem políticas claras na área da cidade. Diretrizes foram desenvolvidas para diferentes ramos de profissionais (por exemplo, arquitetos, paisagistas, engenheiros, etc.)."]
[null,"2 - Embora existam políticas, as diretrizes de apoio não são adequadas. "]
[null,"1 - Se promovem enfoques para a resiliência, mas não de forma adequada e não estão respaldados pelas políticas da cidade."]
[null,"0 - Há pouca/não há promoção da resiliência no novo desenvolvimento urbano."]
["Ações para alcançar a máxima resiliência",null,"Instituição responsável","Escala de tempo"]
[]
[]
["P4.3 - Normas e padrões de construção"]
["Questão",null,"Comentários"]
["Existem normas ou padrões de construção e, em caso afirmativo, eles abordam ameaças e riscos conhecidos e específicos da cidade? Esses padrões são atualizados regularmente?",null,"Isso pode significar que normas obrigatórias (regulamentos) ou padrões voluntários (como BREEAM, LEED, Greenstar, REDi) sejam promovidos na cidade por meio de políticas ou incentivos. É importante ficar claro se os códigos em uso realmente aumentam a resiliência diante das ameaças identificadas.\nEssas regras incluirão aquelas relacionadas à prestação de serviços básicos de infra-estrutura para assentamentos informais, sem os quais a capacidade de recuperação desses assentamentos após um desastre é seriamente comprometida."]
["Resposta",null,"Fornecer meios de verificação (explicação e evidência)"]
[null,"3 - Existem normas e padrões locais. Estes abordam todas as ameaças conhecidas na cidade e são atualizados com regularidade."]
[null,"2 - Existem normas e padrões locais. Eles abordam as principais ameaças da cidade e são atualizados com regulaidade."]
[null,"1 - Existem alguns padrões, os quais abrangem certas ameaças. Não há um plaano claro para atualizações."]
[null,"0 - Não há um uso concreto/não existem normas e padrões relevantes de construção."]
["Ações para alcançar a máxima resiliência",null,"Instituição responsável","Escala de tempo"]
[]
[]
["P4.4 - Aplicação de regras de zoneamento, códigos e padrões de construção"]
["Questão",null,"Comentários"]
["Eles são amplamente aplicados, adequadamente aplicados e as regras de zoneamento, códigos e padrões de construção são verificados?",null,"Para a verificação de zonas, é necessário ter provas de que somente atividades adequadas estão sendo realizadas em uma determinada área.\nEm termos gerais, a verificação de um código refere-se à revisão de um terceiro que é estranho à equipe de projeto e construção.\nÉ improvável que as cidades com assentamentos informais tenham pontuação alta nessa avaliação, a menos que os ocupantes desses assentamentos tenham participado e se ajudado a ser mais resilientes."]
["Resposta",null,"Fornecer meios de verificação (explicação e evidência)"]
[null,"3 - Se aplica e se faz cumprir/se verifica o 100 por cento dos padrões de zoneamento e construção."]
[null,"2 - Se aplicam e se fazem cumprir/se verificam os padões de zoneamento e construção em mais de 50 por centos dos casos."]
[null,"1 - A aplicação dos padrões de zonemanto e construção existentes são parciais e/ou inadequados."]
[null,"0 - Não há esforços que realmente se concentrem em impor os padõres de zoneamento e construção."]
["Ações para alcançar a máxima resiliência",null,"Instituição responsável","Escala de tempo"]

{"sheet":"E5","index":6,"n_rows":35,"n_cols":4,"rows_kept":35,"cut":false,"hidden":false,"merged":[[4,0,4,1],[15,0,15,1],[17,0,17,1],[28,0,28,1],[26,0,26,1],[30,2,33,3],[34,0,34,1],[35,0,35,1],[19,2,22,3],[23,0,23,1],[24,0,24,1],[27,2,27,3],[28,2,28,3],[29,0,29,1],[29,2,29,3],[8,2,11,3],[5,0,5,1],[16,0,16,1],[27,0,27,1],[2,0,2,1],[5,2,5,3],[6,2,6,3],[7,0,7,1],[7,2,7,3],[12,0,12,1],[13,0,13,1],[16,2,16,3],[17,2,17,3],[18,0,18,1],[18,2,18,3],[6,0,6,1]]}
[]
[]
[]
[]
["P5.1 - Conscientização e compreensão dos serviços / funções dos ecossistêmicas"]
["Questão",null,"Comentários"]
["Além da consciência dos ativos naturais, a cidade compreende as funções (ou serviços) que esse capital natural oferece?",null,"Entre as funções dos ecossistemas se incluem as seguintes: mitigação da água, geração de aliemntos, combustíveis, captura de carbono, filtragem de ar, atenuação do calor, polinização, valor estético, etc."]
["Resposta",null,"Fornecer meios de verificação (explicação e evidência)"]
[null,"3 - A cidade e os principais stakeholders estão familiarizados com o termo \"serviços ecossistêmicos\" e entendem e valorizam economicamente todas as funções dos principais ativos naturais locais."]
[null,"2 - A cidade e as principais partes interessadas compreendem a maioria das funções dos recursos naturais locais, mas estas não são valorizadas economicamente."]
[null,"1 - Não há um grau total de consciência e compreensão das funções desempenhadas pelo capital natural das cidades."]
[null,"0 - Há muito pouco/nenhum tipo de sensibilização sobre este tema na cidade."]
["Ações para alcançar a máxima resiliência",null,"Instituição responsável","Escala de tempo"]
[]
[]
["P5.2 - Integração da infraestrutura verde e azul nas políticas e projetos municipais"]
["Questão",null,"Comentários"]
["A infraestrutura verde e azul está sendo promovida através das políticas nos principais projetos de desenvolvimento e infraestrutura nas áreas urbanas?",null,"A infraestrutura verde inclui o seguinte: ruas verdes, praças, plataformas e estradas; greening de telhados e fachadas, desenvolvimento de uma agricultura urbana, criação de corredores verdes urbanos, substituição de superfícies impermeáveis, filtração natural de água, restauração de canais naturais de rios e aterros urbanos, etc.\nA infraestrutura azul inclui os seguintes: corredores fluviais, zonas húmidas e outras vias navegáveis."]
["Resposta",null,"Fornecer meios de verificação (explicação e evidência)"]
[null,"3 - A infraestrutura verde e azul está sendo promovida nos principais projetos de desenvolvimento e infraestrutura nas áreas urbanas, por meio de políticas e materiais de orientação de apoio na cidade."]
[null,"2 - Está sendo promovida infraestrutura verde e azul, mas há muito pouca orientação disponível para os profissionais."]
[null,"1 - Está sendo promovida certa infraestrutura verde e azul, mas não é uma prática universal e não se conta com o respaldo de nenhuma política."]
[null,"0 - Há pouco / nenhum esforço para promover ativamente a infraestrutura verde e azul em novos projetos de desenvolvimento ou infraestrutura em áreas urbanas."]
["Ações para alcançar a máxima resiliência",null,"Instituição responsável","Escala de tempo"]
[]
[]
["P5.3 - Questões ambientais transfronteiriças"]
["Questão",null,"Comentários"]
["A cidade está ciente dos serviços ecossistêmicos que estão sendo oferecidos a ela a partir do capital natural além de seus limites administrativos? Existem acordos com as administrações vizinhas para apoiar a proteção e o gerenciamento desses ativos?"]
["Resposta",null,"Fornecer meios de verificação (explicação e evidência)"]
[null,"3 - A cidade leva em conta a importância do capital natural fora de seus limites administrativos e estabeleceu planos com as administrações vizinhas para apoiar a proteção e gestão desses ativos"]
[null,"2 - A cidade está ciente da importância do capital natural fora de seus limites administrativos e tem havido algumas conversas iniciais com as administrações vizinhas a este respeito."]
[null,"1 - A cidade possui certo grau de conhecimento sobre as funções oferecidas pelo capital natural fora de seus limites administrativos, mas não tomou nenhuma medida nesse sentido."]
[null,"0 - Há muito pouco ou nenhum conhecimento a respeito."]
["Ações para alcançar a máxima resiliência",null,"Instituição responsável","Escala de tempo"]

{"sheet":"E6","index":7,"n_rows":68,"n_cols":4,"rows_kept":68,"cut":false,"hidden":false,"merged":[[39,0,39,1],[48,0,48,1],[50,0,50,1],[61,0,61,1],[59,0,59,1],[15,0,15,1],[17,0,17,1],[26,0,26,1],[28,0,28,1],[37,0,37,1],[50,2,50,3],[63,2,66,3],[67,0,67,1],[68,0,68,1],[52,2,55,3],[56,0,56,1],[57,0,57,1],[60,2,60,3],[61,2,61,3],[62,0,62,1],[62,2,62,3],[60,0,60,1],[27,2,27,3],[28,2,28,3],[51,0,51,1],[51,2,51,3],[30,2,33,3],[34,0,34,1],[35,0,35,1],[38,2,38,3],[39,2,39,3],[40,0,40,1],[40,2,40,3],[49,0,49,1],[41,2,44,3],[45,0,45,1],[46,0,46,1],[49,2,49,3],[2,0,2,1],[5,2,5,3],[6,2,6,3],[7,0,7,1],[7,2,7,3],[6,0,6,1],[4,0,4,1],[8,2,11,3],[5,0,5,1],[16,0,16,1],[27,0,27,1],[38,0,38,1],[29,0,29,1],[29,2,29,3],[12,0,12,1],[13,0,13,1],[16,2,16,3],[17,2,17,3],[18,0,18,1],[18,2,18,3],[19,2,22,3],[23,0,23,1],[24,0,24,1]]}
[]
[]
[]
[]
["P6.1 - Competências e experiência"]
["Questão",null,"Comentários"]
["A cidade tem um acesso óbvio a todas as habilidades e experiências que considera necessárias para reduzir o risco e responder aos cenários de desastre identificados?",null,"A cidade deve levar em conta habilidades e experiências relacionadas ao planejamento antes de um desastre, bem como a resposta durante e após um evento.\nAs habilidades podem vir da própria cidade ou de organizações externas baseadas na cidade (por exemplo, serviços básicos), ou através de consultorias pagas, etc."]
["Resposta",null,"Fornecer meios de verificação (explicação e evidência)"]
[null,"3 - A cidade tem acesso rápido a todas as habilidades / experiências e recursos necessários para responder aos cenários de desastre identificados."]
[null,"2 - A cidade tem acesso rápido à maioria das habilidades / experiências e recursos necessários para responder aos cenários de desastres identificados. Outras devoluções necessárias podem ser obtidas de outras cidades / países / regiões próximas."]
[null,"1 - A cidade pode ter acesso à maioria das habilidades / experiências e recursos necessários para responder aos cenários de desastre identificados, mas ainda existem algumas lacunas."]
[null,"0 - Existem lacunas consideráveis ​​nas habilidades / experiências e recursos que a cidade pode acessar rapidamente para responder a cenários de desastre identificados."]
["Ações para alcançar a máxima resiliência",null,"Instituição responsável","Escala de tempo"]
[]
[]
["P6.2 - Conscientização pública e educação"]
["Questão",null,"Comentários"]
["Existe uma campanha de educação ou de relações públicas devidamente coordenada, com canais e mensagens estruturados para garantir que as informações sobre ameaças, riscos e desastres (que podem ser compreendidas e utilizadas) sejam divulgadas de maneira apropriada ao público?",null,"Aqui estamos avaliando a capacidade da cidade de se comunicar com o público. Haverá uma série de outros canais de comunicação por outras partes interessadas."]
["Resposta",null,"Fornecer meios de verificação (explicação e evidência)"]
[null,"3 - Existem campanhas e programas totalmente coordenados (relações públicas e educação) para assegurar a adequada divulgação de informações sobre ameaças, riscos e desastres. As mensagens principais atingem mais de 75% da população da cidade."]
[null,"2 - Existem campanhas e programas (relações públicas e educação) para garantir a adequada divulgação de informações sobre ameaças, riscos e desastres. Mensagens-chave chegam a mais de 50% da população da cidade."]
[null,"1 - Existem alguns programas / canais úteis para disseminar informações sobre ameaças, riscos e desastres, mas há um escopo considerável para melhorar e atingir um segmento maior do público. Atinge 25 por cento da população."]
[null,"0 - Os sistemas para divulgar informações vitais sobre o risco de desastres são completamente inadequados."]
["Ações para alcançar a máxima resiliência",null,"Instituição responsável","Escala de tempo"]
[]
[]
["P6.3 - Socialização de dados"]
["Questão",null,"Comentários"]
["O grau de compartilhamento de informações sobre a resiliência da cidade com outras organizações envolvidas.",null,"(Veja também o Passo 1).\nOs tipos de dados que são úteis para entender o contexto da resiliência de uma cidade incluem o seguinte: população, aspectos demográficos, vulnerabilidades, riscos de infraestrutura, inundações, registros de desastres.\nAs melhores práticas podem incluir uma estratégia pública completa de comunicações / partes interessadas e um portal de dados e / ou a concessão de autorizações a várias partes interessadas relevantes na cidade para o uso de informações sobre riscos.\nA questão básica aqui é se \"uma versão da verdade\" é compartilhada, como relevante entre as partes interessadas. Em outras palavras, todas as partes interessadas têm informações e suposições consistentes e compatíveis?"]
["Resposta",null,"Fornecer meios de verificação (explicação e evidência)"]
[null,"3 - A cidade possui um portal (ou outro método) para reunir / sintetizar inúmeros conjuntos de dados, que são úteis para se ter uma idéia sobre a resiliência da cidade."]
[null,"2 - A cidade fez um bom trabalho para sintetizar e compartilhar camadas de informações para aumentar a resiliência em um setor ou área em particular."]
[null,"1 - Elas são compartilhadas/algumas são acessíveis,  não todas, as camadas de informações da cidade, mas os dados não são processados e devem ser interpretados."]
[null,"0 - Há disponibilidade/poucos ou nenhum dado útil da cidade é compartilhado."]
["Ações para alcançar a máxima resiliência",null,"Instituição responsável","Escala de tempo"]
[]
[]
["P6.4 - Treinamento"]
["Questão",null,"Comentários"]
["Existem cursos de treinamento que cobrem aspectos de risco e resiliência e são oferecidos a todos os setores da cidade, como governo, empresas, ONGs e comunidades?",null,"Tenha em mente que os exercícios de resposta a emergências estão incluídos no Passo 9. As sessões de treinamento sob o aspecto essencial 6 estão relacionadas à formação profissional."]
["Resposta",null,"Fornecer meios de verificação (explicação e evidência)"]
[null,"3 - Existem cursos de formação que cobrem risco, resiliência e resposta em caso de desastres, e são oferecidos a todos os setores da cidade, como governo, empresas, ONGs e comunidades."]
[null,"2 - A cidade tem uma longa história de treinamento em resiliência voltada para alguns setores, mas outros carecem de treinamento e não participam."]
[null,"1 - Há diponibilidade de alguns módulos de capacitação. É necessário melhorar consideravelmente o conteúdo e os temas abordados."]
[null,"0 - Existe pouca ou nenhuma capacitação relevante adaptada especificamente para a cidade."]
["Ações para alcançar a máxima resiliência",null,"Instituição responsável","Escala de tempo"]
[]
[]
["P6.5 - Idiomas"]
["Questão",null,"Comentários"]
["Existe material de treinamento disponível na maioria das línguas comumente usadas na cidade?",null,"Cidades com um grande número de línguas diferentes podem ter que se contentar com a seleção das línguas que atingem toda a população, como a primeira ou segunda língua."]
["Resposta",null,"Fornecer meios de verificação (explicação e evidência)"]
[null,"3 - Todos os materiais de capacitação estão disponíveis em todos os idiomas que normalmente se usam na cidade."]
[null,"2 - Todos os materiais de capacitação estão disponíveis na maioria dos idiomas que normalmente se usam na cidade."]
[null,"1 - Todos os materiais de capacitação estão disponíveis em alguns dos indiomas que normalmente se usam na cidade."]
[null,"0 - Nenhuma tradução foi feita."]
["Ações para alcançar a máxima resiliência",null,"Instituição responsável","Escala de tempo"]
[]
[]
["P6.6 - Aprendendo com os outros"]
["Questão",null,"Comentários"]
["A cidade está procurando proativamente trocar conhecimento e aprender com outras cidades que enfrentam desafios semelhantes?",null,"Isto poderia ser feito através de um intercâmbio direto com cidades homólogas, ou através de grupos da indústria, fóruns nacionais sobre resiliência e gestão de emergências, associações municipais, como C40 e ICLEI, entre outras, ou ONGs e organizações internacionais, como Nações Unidas."]
["Resposta",null,"Fornecer meios de verificação (explicação e evidência)"]
[null,"3 - A cidade procura, proativamente, trocar conhecimentos e aprender com outras cidades que enfrentam desafios semelhantes, e permanece ativa em várias redes para facilitar esse aspecto."]
[null,"2 - A cidade entende a importância de compartilhar conhecimentos e é afiliada a diversas redes de cidades. Essas redes não são usadas ao máximo para alcançar o maior benefício possível."]
[null,"1 - Existe certa socialização do conhecimento entre as cidades, mas isto tende a ser realizado caso seja neecssário."]
[null,"0 - Qualquer tipo de socialização do conhecimento que socorre depende das pessoas em um plano individual."]
["Ações para alcançar a máxima resiliência",null,"Instituição responsável","Escala de tempo"]

{"sheet":"E7","index":8,"n_rows":46,"n_cols":4,"rows_kept":46,"cut":false,"hidden":false,"merged":[[17,0,17,1],[15,0,15,1],[28,0,28,1],[26,0,26,1],[37,0,37,1],[27,2,27,3],[28,2,28,3],[41,2,44,3],[45,0,45,1],[46,0,46,1],[30,2,33,3],[34,0,34,1],[35,0,35,1],[38,2,38,3],[39,2,39,3],[40,0,40,1],[40,2,40,3],[39,0,39,1],[2,0,2,1],[5,2,5,3],[6,2,6,3],[7,0,7,1],[7,2,7,3],[4,0,4,1],[6,0,6,1],[8,2,11,3],[5,0,5,1],[16,0,16,1],[27,0,27,1],[38,0,38,1],[29,0,29,1],[29,2,29,3],[12,0,12,1],[13,0,13,1],[16,2,16,3],[17,2,17,3],[18,0,18,1],[18,2,18,3],[19,2,22,3],[23,0,23,1],[24,0,24,1]]}
[]
[]
[]
[]
["P7.1 - Organizações comunitárias ou de base, redes e treinamento"]
["Questão",null,"Comentários"]
["As organizações de base estão participando do planejamento antes de um evento de desastre e nas respostas subsequentes de cada bairro da cidade?",null,"Os tipos de organizações de base que estão ativamente apoiando atividades para redução do risco de desastres variam de acordo com a região e a cidade. Poderia incluir grupos de jovens, como a Associação Cristã de Jovens (YMCA), clubes esportivos, etc. Isso dependerá de quais grupos têm mais capacidade e tração em cada lugar."]
["Resposta",null,"Fornecer meios de verificação (explicação e evidência)"]
[null,"3 - Organizações comunitárias que cobrem uma parte considerável da população da cidade estão participando ativamente no planejamento antes de um evento de desastre e em respostas subsequentes por toda a cidade."]
[null,"2 - Há participação de várias organizações de base, seja em alguns lugares ou em certos aspectos do planejamento ou das respostas, mas isso não é exaustivo."]
[null,"1 - As principais organizações de base estão conscientes da importância da gestão do risco de desastres, apoiam os esforços de sensibilização, mas não participam ativamente no planejamento ou nas respostas."]
[null,"0 - Há muito pouca participação das organizações de base da cidade."]
["Ações para alcançar a máxima resiliência",null,"Instituição responsável","Escala de tempo"]
[]
[]
["P7.2 - Redes Sociais \"Sem deixar ninguém de fora\""]
["Questão",null,"Comentários"]
["Existem programas de treinamento regularmente oferecidos aos grupos mais vulneráveis e às populações carentes da cidade?",null,"A vulnerabilidade social é o resultado de fatores sociais anteriores a um desastre, que geram a falta de capacidade ou funcionalidade para preparar, responder e recuperar de uma emergência. A vulnerabilidade social inclui pessoas com maior possibilidade de sofrer desproporcionalmente devido às suas circunstâncias sociais, tais como aquelas relacionadas à sua idade, sexo, raça, doença ou condição médica, incapacidade, nível de alfabetização ou isolamento social."]
["Resposta",null,"Fornecer meios de verificação (explicação e evidência)"]
[null,"3 - Os programas de capacitação são realizados a cada seis meses."]
[null,"2 - Os programas de capacitação são realizados uma vez ao ano."]
[null,"1 - Não há programas de capacitação, mas há mapas disponíveis da população socialmente vulnerável."]
[null,"0 - Não há mapas da população socialmente vulnerável."]
["Ações para alcançar a máxima resiliência",null,"Instituição responsável","Escala de tempo"]
[]
[]
["P7.3 - Setor privado / empregadores"]
["Questão",null,"Comentários"]
["Que proporção das empresas tem um plano de continuidade de negócios devidamente documentado, que foi revisado nos últimos 18 meses?",null,"Empresas com mais de 10 pessoas / funcionários."]
["Resposta",null,"Fornecer meios de verificação (explicação e evidência)"]
[null,"3 - 60-100% dos negócios."]
[null,"2 - 40-60% dos negócios."]
[null,"1 - 20-40% dos negócios"]
[null,"0 - Menos de 20% dos negócios."]
["Ações para alcançar a máxima resiliência",null,"Instituição responsável","Escala de tempo"]
[]
[]
["P7.4 - Técnicas de participação cidadã"]
["Questão",null,"Comentários"]
["Quão eficaz é a cidade em termos de participação dos cidadãos e comunicações em relação à redução do risco de desastres?"]
["Resposta",null,"Fornecer meios de verificação (explicação e evidência)"]
[null,"3 - A participação é alcançada através de vários meios de comunicação (por exemplo, redes sociais, rádio, correio eletrônico, jornais, dispositivos móveis). Dispositivos móveis são usados ​​para fluxo de dados de entrada, gerenciamento de multidões, etc. Isso resulta em vários contatos por cidadão a cada ano."]
[null,"2 - Existem múltiplos meios de comunicação. Os dados recebidos não são coletados de dispositivos móveis. A maioria dos cidadãos é alcançada várias vezes por ano."]
[null,"1 - Existem alguns canais e se atualizam com certa regularidade."]
[null,"0 - A participação dos cidadãos na reduação de riscos de desastres é deficiente ou não existe."]
["Ações para alcançar a máxima resiliência",null,"Instituição responsável","Escala de tempo"]

{"sheet":"E8","index":9,"n_rows":101,"n_cols":4,"rows_kept":101,"cut":false,"hidden":false,"merged":[[70,0,70,1],[83,0,83,1],[81,0,81,1],[94,0,94,1],[92,0,92,1],[84,0,84,1],[50,0,50,1],[48,0,48,1],[61,0,61,1],[59,0,59,1],[40,0,40,1],[96,2,99,3],[100,0,100,1],[101,0,101,1],[85,2,88,3],[89,0,89,1],[90,0,90,1],[93,2,93,3],[94,2,94,3],[95,0,95,1],[95,2,95,3],[93,0,93,1],[84,2,84,3],[63,2,66,3],[67,0,67,1],[68,0,68,1],[71,2,71,3],[72,2,72,3],[73,0,73,1],[73,2,73,3],[71,0,71,1],[82,0,82,1],[74,2,77,3],[78,0,78,1],[79,0,79,1],[82,2,82,3],[83,2,83,3],[72,0,72,1],[62,0,62,1],[62,2,62,3],[41,2,44,3],[45,0,45,1],[46,0,46,1],[49,2,49,3],[50,2,50,3],[51,0,51,1],[51,2,51,3],[49,0,49,1],[60,0,60,1],[52,2,55,3],[56,0,56,1],[57,0,57,1],[60,2,60,3],[61,2,61,3],[40,2,40,3],[19,2,22,3],[23,0,23,1],[24,0,24,1],[27,2,27,3],[28,2,28,3],[29,0,29,1],[29,2,29,3],[30,2,33,3],[34,0,34,1],[35,0,35,1],[38,2,38,3],[39,2,39,3],[26,0,26,1],[28,0,28,1],[39,0,39,1],[2,0,2,1],[5,2,5,3],[6,2,6,3],[7,0,7,1],[7,2,7,3],[4,0,4,1],[6,0,6,1],[8,2,11,3],[5,0,5,1],[16,0,16,1],[27,0,27,1],[38,0,38,1],[12,0,12,1],[13,0,13,1],[16,2,16,3],[17,2,17,3],[18,0,18,1],[18,2,18,3],[17,0,17,1],[15,0,15,1],[37,0,37,1]]}
[]
[]
[]
[]
["P8.1 - Visão geral da infraestrutura vital"]
["Questão",null,"Comentários"]
["A resiliência da infraestrutura vital representa uma prioridade para a cidade? A cidade tem e executa um plano ou estratégia de infraestrutura vital?"]
["Resposta",null,"Fornecer meios de verificação (explicação e evidência)"]
[null,"3 - A cidade tem e executa (em colaboração com outras partes interessadas) um plano ou estratégia de infra-estrutura vital para protegê-lo, assim como serviços básicos e públicos. A estratégia destaca riscos / tensões e inclui planos de continuidade para serviços essenciais."]
[null,"2 - Existe um fórum sobre infra-estrutura vital ou outro (s) meio (s) para estabelecer um entendimento comum entre a cidade e diversos prestadores de serviços básicos sobre o risco nos pontos de tensão dos sistemas / riscos no campo de cidade."]
[null,"1 - O risco é compreendido, mas só no caso de alguns tipos de infraestrutura básica (não todos os tipos)."]
[null,"0 - Não há planos ou fóruns. Não se compreende muito bem os riscos na infraestrutural vital da cidade."]
["Ações para alcançar a máxima resiliência",null,"Instituição responsável","Escala de tempo"]
[]
[]
["P8.2 - Infraestrutura de proteção"]
["Questão",null,"Comentários"]
["A infra-estrutura de proteção é bem projetada e construída, com base em informações sobre os riscos existentes?",null,"Exemplos de infraestrutura de proteção:\nDiques e barreiras contra inundações.\nBacias hidrográficas / depósitos de inundação.\nMalecon (nos lugares onde eles são usados).\nAbrigos para casos de tornados / furacões, etc.\nEsgotos e tanques para pegar a água da chuva.\nZonas húmidas e mangais (ver Passo 5).\nCapacidades para absorver impactos para que a infraestrutura possa enfrentar um terremoto."]
["Resposta",null,"Fornecer meios de verificação (explicação e evidência)"]
[null,"3 - Em todos os casos, uma infraestrutura de proteção foi estabelecida e isso é consistente com as melhores práticas para o projeto e gerenciamento de mercadorias, com base em informações relevantes sobre riscos."]
[null,"2 - Na maioria dos casos, uma infraestrutura de proteção foi estabelecida e isso é consistente com as melhores práticas para o projeto e gerenciamento de ativos, com base em informações relevantes sobre riscos."]
[null,"1 - Em alguns casos, uma infraestrutura de proteção foi estabelecida. No entanto, algumas infraestruturas deste tipo são necessárias. O design e o gerenciamento podem não ser consistentes com as melhores práticas existentes."]
[null,"0 - Grande parte da cidade está desprotegida contra ameças/riscos conhecidos."]
["Ações para alcançar a máxima resiliência",null,"Instituição responsável","Escala de tempo"]
[]
[]
["P8.3 - Água Potável e Saneamento"]
["Questão",null,"Comentários"]
["Espera-se que experimente a perda significativa desses dois serviços essenciais em grande parte da cidade sob os cenários de desastre acordados?"]
["Resposta",null,"Fornecer meios de verificação (explicação e evidência)"]
[null,"3 - Nenhuma perda de serviços seria sentida, mesmo sob o cenário \"mais grave\"."]
[null,"2 - Alguma perda de serviços sob o cenário \"mais grave\" seria experimentada."]
[null,"1  - Alguma perda de serviços sob o cenário \"mais provável\" seria experimentada"]
[null,"0 - Uma perda considerável de serviços sob o cenário \"mais provável\" seria experimentada"]
["Ações para alcançar a máxima resiliência",null,"Instituição responsável","Escala de tempo"]
[]
[]
["P8.4 - Energia"]
["Questão",null,"Comentários"]
["Espera-se que grande parte da cidade sofra uma perda considerável de serviços em um evento sob o \"pior cenário\"? Se houver falhas, os corredores da infraestrutura elétrica permanecerão seguros (ou seja, sem risco de vazamentos, sem riscos de eletrocussão, etc.)?"]
["Resposta",null,"Fornecer meios de verificação (explicação e evidência)"]
[null,"3 - Nenhuma perda de serviços seria sentida, mesmo sob o cenário \"mais grave\"."]
[null,"2 - Alguma perda de serviços sob o cenário \"mais grave\" seria experimentada."]
[null,"1  - Alguma perda de serviços sob o cenário \"mais provável\" seria experimentada"]
[null,"0 - Uma perda considerável de serviços sob o cenário \"mais provável\" seria experimentada"]
["Ações para alcançar a máxima resiliência",null,"Instituição responsável","Escala de tempo"]
[]
[]
["P8.5 - Transporte"]
["Questão",null,"Comentários"]
["Espera-se que grande parte da cidade experimente a perda considerável de serviços em um evento sob o cenário de \"no pior dos casos? Se houver falhas, os corredores da infraestrutura de transporte permanecerão utilizáveis e seguros (isto é, sem risco de inundação, etc.)?"]
["Resposta",null,"Fornecer meios de verificação (explicação e evidência)"]
[null,"3 - Nenhuma perda de serviços seria sentida, mesmo sob o cenário \"mais grave\"."]
[null,"2 - Alguma perda de serviços sob o cenário \"mais grave\" seria experimentada."]
[null,"1  - Alguma perda de serviços sob o cenário \"mais provável\" seria experimentada"]
[null,"0 - Uma perda considerável de serviços sob o cenário \"mais provável\" seria experimentada"]
["Ações para alcançar a máxima resiliência",null,"Instituição responsável","Escala de tempo"]
[]
[]
["P8.6 - Comunicação"]
["Questão",null,"Comentários"]
["Espera-se que uma grande parte da cidade venha a experimentar a perda considerável de serviços em um evento sob o cenário de \"no pior dos casos?"]
["Resposta",null,"Fornecer meios de verificação (explicação e evidência)"]
[null,"3 - Nenhuma perda de serviços seria sentida, mesmo sob o cenário \"mais grave\"."]
[null,"2 - Alguma perda de serviços sob o cenário \"mais grave\" seria experimentada."]
[null,"1  - Alguma perda de serviços sob o cenário \"mais provável\" seria experimentada"]
[null,"0 - Uma perda considerável de serviços sob o cenário \"mais provável\" seria experimentada"]
["Ações para alcançar a máxima resiliência",null,"Instituição responsável","Escala de tempo"]
[]
[]
["P8.7 - Cuidados de saúde"]
["Questão",null,"Comentários"]
["Haveria capacidades desenvolvidas suficientes em cuidados de saúde para tratar as lesões graves previstas no \"pior cenário\"?"]
["Resposta",null,"Fornecer meios de verificação (explicação e evidência)"]
[null,"3 - >90% das lesões graves no cenário \"mais severo\" podem ser tratadas em um prazo de 6 horas."]
[null,"2 - >90% das lesões graves no cenário \"mais severo\" podem ser tratadas em um prazo de 24 horas."]
[null,"1 - >90% das lesões graves no cenário \"mais severo\" podem ser tratadas em um prazo de 36 horas."]
[null,"0 - Ultrapassam mais de 36 horas ou não existem capacidades para a atenção de sáude em casos de emergência."]
["Ações para alcançar a máxima resiliência",null,"Instituição responsável","Escala de tempo"]
[]
[]
["P8.8 - Instituições educacionais"]
["Questão",null,"Comentários"]
["Porcentagem de estruturas educacionais que correm o risco de sofrer danos nos cenários \"mais provável\" e \"mais grave\"."]
["Resposta",null,"Fornecer meios de verificação (explicação e evidência)"]
[null,"3 - Não há escolas em risco sob o cenário \"mais grave\"."]
[null,"2 - Não há escolas em risco sob o cenário \"mais provável\""]
[null,"1 - 5-10% das escolas correm risco sob o cenário \"mais provável\"."]
[null,"0 - >15% das escolas correm risco sob o cenário \"mais provável\"."]
["Ações para alcançar a máxima resiliência",null,"Instituição responsável","Escala de tempo"]
[]
[]
["P8.9 - Recursos dos socorristas"]
["Questão",null,"Comentários"]
["Haveria equipamento suficiente para socorristas, com apoio militar ou civil, conforme necessário?",null,"Provisão de socorristas.\n  - Veja o Passo 9.\nEntre os recursos essenciais para a aplicação da lei / socorristas incluem-se os seguintes:\nVeículos (caminhões de bombeiros, ambulâncias, patrulhas, etc.)\nHelicópteros e aeronaves.\nReservas / suprimentos de alimentos de emergência e primeiros socorros.\nHostels\nGeradores de reposição.\n(Sistemas de comunicação - veja acima).\n(Centros de operação - veja abaixo).\n(Edifícios principais - veja abaixo).\n(Sistemas essenciais de tecnologia da informação - veja abaixo).\nCaminhões / vans, conforme necessário para restaurar os serviços de energia, comunicações e saneamento.\nOutros equipamentos básicos, como escavadeiras, caminhões, guinchos, motosserras, etc.\nOs serviços podem ser fornecidos com esses recursos ou através do backup alternativo / designado."]
["Resposta",null,"Fornecer meios de verificação (explicação e evidência)"]
[null,"3 - Os níveis de equipamentos e recursos foram modelados, ou foi provado que eles são adequados na prática para enfrentar o cenário \"mais severo\"."]
[null,"2 - Os níveis de equipamentos e recursos foram modelados, ou ficou provado que eles são adequados na prática para enfrentar o cenário \"mais severo\", embora isso dependa de acordos de ajuda mútua existentes. Estes acordos de ajuda mútua são testados, caso haja a possibilidade de serem afetados"]
[null,"1 - Os recursos satisfazem a necessidade básica sob o cenário \"mais grave\", mas sabe-se que existem lacunas."]
[null,"0 - Existem lacunas consideráveis na capacidade para satisfazer as necessidades no cenário \"mais provável\"."]
["Ações para alcançar a máxima resiliência",null,"Instituição responsável","Escala de tempo"]

{"sheet":"E9","index":10,"n_rows":79,"n_cols":4,"rows_kept":79,"cut":false,"hidden":false,"merged":[[78,0,78,1],[79,0,79,1],[63,2,66,3],[67,0,67,1],[68,0,68,1],[71,2,71,3],[72,2,72,3],[73,0,73,1],[73,2,73,3],[71,0,71,1],[70,0,70,1],[72,0,72,1],[61,2,61,3],[74,2,77,3],[62,0,62,1],[62,2,62,3],[61,0,61,1],[41,2,44,3],[45,0,45,1],[46,0,46,1],[49,2,49,3],[50,2,50,3],[51,0,51,1],[51,2,51,3],[49,0,49,1],[60,0,60,1],[48,0,48,1],[50,0,50,1],[59,0,59,1],[52,2,55,3],[56,0,56,1],[57,0,57,1],[60,2,60,3],[18,2,18,3],[40,0,40,1],[40,2,40,3],[19,2,22,3],[23,0,23,1],[24,0,24,1],[27,2,27,3],[28,2,28,3],[29,0,29,1],[29,2,29,3],[39,0,39,1],[30,2,33,3],[34,0,34,1],[35,0,35,1],[38,2,38,3],[39,2,39,3],[2,0,2,1],[5,2,5,3],[6,2,6,3],[7,0,7,1],[7,2,7,3],[4,0,4,1],[8,2,11,3],[5,0,5,1],[16,0,16,1],[27,0,27,1],[38,0,38,1],[6,0,6,1],[15,0,15,1],[17,0,17,1],[26,0,26,1],[28,0,28,1],[37,0,37,1],[12,0,12,1],[13,0,13,1],[16,2,16,3],[17,2,17,3],[18,0,18,1]]}
[]
[]
[]
[]
["P9.1 - Aviso Prévio"]
["Questão",null,"Comentários"]
["A cidade tem um plano ou procedimento operacional padrão para agir após um aviso prévio e uma previsão? Que proporção da população pode ser alcançada com um sistema de alerta precoce?",null,"Neste momento, não é tecnologicamente possível ter um aviso prévio significativo para terremotos."]
["Resposta",null,"Fornecer meios de verificação (explicação e evidência)"]
[null,"3 - Estima-se que mais de 90% da população possa ser alcançada com um sistema de alerta precoce."]
[null,"2 - Estima-se que mais de 75% da população possa ser alcançada com um sistema de alerta precoce."]
[null,"1 - Estima-se que mais da metade da população possa ser alcançada com um sistema de alerta precoce."]
[null,"0 - Menos da metada da população pode ser alcançada com um sistema de alerta precoce."]
["Ações para alcançar a máxima resiliência",null,"Instituição responsável","Escala de tempo"]
[]
[]
["P9.2 - Planos para o gerenciamento de um evento"]
["Questão",null,"Comentários"]
["Existe um plano de preparação / resposta a emergências / gestão de desastres que descreva a mitigação, preparação e resposta da cidade a emergências locais?",null,"Este plano oferece estratégias, organização e estruturas para a cidade para preparação para desastres, bem como instruções para uma resposta? O plano estabelece funções, responsabilidades, recursos, modalidades de cooperação e coordenação entre os principais atores da cidade?"]
["Resposta",null,"Fornecer meios de verificação (explicação e evidência)"]
[null,"3 - Existe um plano de preparação / resposta a desastres / emergências que descreve a mitigação, preparação e resposta da cidade a emergências locais."]
[null,"2 - Existe um plano amplo, mas existem lacunas consideráveis em termos de mitigação, preparação e resposta da cidade a emergências locais."]
[null,"1 - Existem alguns planos, mas não são integrados ou não existe nenhuma relação entre eles."]
[null,"0 - Não se conhece nenhum plano."]
["Ações para alcançar a máxima resiliência",null,"Instituição responsável","Escala de tempo"]
[]
[]
["P9.3 - Dotação / necessidades dos socorristas"]
["Questão",null,"Comentários"]
["A autoridade de gestão de desastres tem capacidade de pessoal suficiente para suportar as tarefas dos socorristas no cenário de \"capacidade de reação\" no caso de um evento?",null,"A adequação do nível de equipamento é abordada no Passo 8."]
["Resposta",null,"Fornecer meios de verificação (explicação e evidência)"]
[null,"3 - Existe uma capacidade de reação e isso é testado em um evento real ou em exercícios práticos para desastres e cenários de risco, de acordo com o Passo 2. A cobertura de todos os bairros será possível dentro de um período de 4 horas."]
[null,"2 - A cobertura de todos os bairros será possível em um prazo de 24-48 horas."]
[null,"1 - A cobertura de todos os bairros será possível em um prazo de 48-72 horas."]
[null,"0 - Nenhuma capacidade de reação foi identificada."]
["Ações para alcançar a máxima resiliência",null,"Instituição responsável","Escala de tempo"]
[]
[]
["P9.4 - Necessidades de equipamentos e suprimentos de socorro"]
["Questão",null,"Comentários"]
["As necessidades de equipamentos e suprimentos foram claramente definidas, assim como a disponibilidade de equipamentos?"]
["Resposta",null,"Fornecer meios de verificação (explicação e evidência)"]
[null,"3 - As necessidades foram definidas e estão ligadas aos cenários de desastre, levando em conta o papel dos voluntários."]
[null,"2 - As necessidades foram definidas e estão ligadas aos cenários de desastre."]
[null,"1 - A definição de necessidades é essencialmente apenas em nome ou baseada em conjecturas."]
[null,"0 - As necessidades não são definidas (ou não há nenhum plano)."]
["Ações para alcançar a máxima resiliência",null,"Instituição responsável","Escala de tempo"]
[]
[]
["P9.5 - Fornecimento de alimentos, abrigo, itens básicos e combustível"]
["Questão",null,"Comentários"]
["Poderia a cidade continuar alimentando e abrigando a população depois de um desastre?"]
["Resposta",null,"Fornecer meios de verificação (explicação e evidência)"]
[null,"3 - No cenário \"mais grave\", o suprimento de alimentos emergenciais e itens básicos de socorro excede a necessidade que foi calculada."]
[null,"2 - No cenário \"mais grave\", o suprimento de alimentos emergenciais e itens básicos de socorro é igual à necessidade que foi calculada."]
[null,"1 - No cenário \"mais grave\", o suprimento de alimentos de emergência e itens básicos de assistência é menor que a necessidade calculada em 2% ou mais."]
[null,"0 - No cenário \"mais severo\", o fornecimento de alimentos de emergência e itens básicos de emergência é menor do que a necessidade é estimado em 5 por cento ou mais / a falta de alimentos é mais do que 24 horas."]
["Ações para alcançar a máxima resiliência",null,"Instituição responsável","Escala de tempo"]
[]
[]
["P9.6 - Interoperabilidade e trabalho interinstitucional "]
["Questão",null,"Comentários"]
["Existe um centro de operações de emergência, com a participação de todas as agências, com procedimentos operacionais padronizados para automação, projetados especificamente para lidar com os cenários \"mais provável\" e \"mais severo\"?"]
["Resposta",null,"Fornecer meios de verificação (explicação e evidência)"]
[null,"3 - Existe um centro de operações de emergência com comunicações reforçadas / redundantes, projetado para enfrentar o cenário \"mais grave\". Tem a participação de todas as agências relevantes."]
[null,"2 - Existe um centro de operações de emergência com comunicações reforçadas / redundantes, projetado para enfrentar o cenário \"mais grave\". Somente a participação das agências centrais está disponível."]
[null,"1 - Um centro de operações de emergência foi designado, mas suas comunicações são obrigatórias e / ou uma ou mais agências relevantes não participam."]
[null,"0 - Não existe nenhum centro de operações de emergência."]
["Ações para alcançar a máxima resiliência",null,"Instituição responsável","Escala de tempo"]
[]
[]
["P9.7 - Simulados"]
["Questão",null,"Comentários"]
["Incluem práticas e simulações para o público e profissionais de diferentes áreas?",null,"Treinamentos de habilidades são abordados no Passo 6."]
["Resposta",null,"Fornecer meios de verificação (explicação e evidência)"]
[null,"3 - Existe uma série anual de simulações que validam diferentes profissionais para serem uma representação realista dos cenários \"mais severos\" e \"mais prováveis\"."]
[null,"2 - São realizados exercícios anuais que validam diferentes profissionais, mas os cenários de teste são limitados."]
[null,"1 - Há exercícios parciais e para fins específicos. Todos os cenários não são testados e também não são realistas."]
[null,"0 - Nenhum exercício é realizado (ou não há nenhum plano - veja acima)."]
["Ações para alcançar a máxima resiliência",null,"Instituição responsável","Escala de tempo"]

{"sheet":"E10","index":11,"n_rows":24,"n_cols":4,"rows_kept":24,"cut":false,"hidden":false,"merged":[[19,2,22,3],[23,0,23,1],[24,0,24,1],[12,0,12,1],[13,0,13,1],[16,2,16,3],[17,2,17,3],[18,0,18,1],[18,2,18,3],[17,0,17,1],[2,0,2,1],[5,2,5,3],[6,2,6,3],[7,0,7,1],[7,2,7,3],[8,2,11,3],[5,0,5,1],[16,0,16,1],[4,0,4,1],[15,0,15,1],[6,0,6,1]]}
[]
[]
[]
[]
["P10.1 - Planejando a recuperação após um evento de desastre - antes do evento"]
["Questão",null,"Comentários"]
["Existe um processo ou estratégia de recuperação e reconstrução após um evento, incluindo reativação econômica, aspectos sociais etc.? ",null,"Planos abrangentes de recuperação após um evento de desastre devem detalhar, por exemplo, o seguinte:\nArranjos provisórios para instalação danificadas.\nLocalização e fontes de habitação temporária.\nPolíticas de seleção para realizar inspeções, reparos e remoção de detritos.\nArranjos para oferecer aconselhamento e apoio pessoal.\nArranjos para oferecer apoio às comunidades.\nArranjos para a reativação econômica.\nMelhorias na configuração e operações da cidade, à medida que o processo de reconstrução é realizado.\nOs planos podem vir de várias organizações, mas devem ser revistos para ver se há congruência nas premissas e prioridades. Estruturas organizacionais após um evento de desastre: veja o aspecto essencial 1. Financiamento: veja o Passo 3."]
["Resposta",null,"Fornecer meios de verificação (explicação e evidência)"]
[null,"3 - Existe um sólido processo/estratégia que compreende bem as partes interessadas."]
[null,"2 - Existe um processo/estratégia que compreende bem as partes interessadas, mas fraquezas são conhecidas."]
[null,"1 - Existem alguns planos/estratégias, mas não são integradas e as partes interessadas não compreendem ou não estão incorporadas a isto."]
[null,"0 - Nenhum plano é conhecido."]
["Ações para alcançar a máxima resiliência",null,"Instituição responsável","Escala de tempo"]
[]
[]
["P10.2 - Lições aprendidas / ciclos de aprendizado"]
["Questão",null,"Comentários"]
["Os processos de avaliação pós-desastre incorporam a análise de falhas e a capacidade de capturar lições aprendidas que são então incorporadas ao projeto e execução de projetos de reconstrução?",null,"Esse aprendizado é essencial para ajudar a cidade a entender como ele pode \"reconstruir melhor\" e também aumentar a compreensão dos riscos. Como afirmado no Passo 2, os novos riscos e a aprendizagem resultante de eventos da vida real podem ser reincorporados à estrutura de gerenciamento de risco na cidade."]
["Resposta",null,"Fornecer meios de verificação (explicação e evidência)"]
[null,"3 - Processos claros foram estabelecidos para capturar lições das falhas que ocorreram após um evento de desastre. Existem mecanismos / processos claros e eficazes para incorporar essas lições na concepção e execução de projetos de reconstrução."]
[null,"2 - Processos claros foram estabelecidos para capturar lições das falhas ocorridas após um evento de desastre. Mecanismos / processos devem ser melhorados para incorporar essas lições na concepção e execução de projetos de reconstrução."]
[null,"1 - Certas lições são captadas e divulgadas, mas não de forma sistemática ou exaustiva."]
[null,"0 - As lições aprendidas não são planejadas / são para um propósito específico e dependem de pessoas em um plano individual."]
["Ações para alcançar a máxima resiliência",null,"Instituição responsável","Escala de tempo"]

{"sheet":"RESULTADOS","index":12,"n_rows":297,"n_cols":12,"rows_kept":297,"cut":false,"hidden":false,"merged":[[73,2,73,5],[74,2,74,5],[81,1,81,6],[83,2,83,5],[84,2,84,5],[51,2,51,5],[57,1,57,6],[59,2,59,5],[60,2,60,5],[61,2,61,5],[62,2,62,5],[69,1,69,6],[71,2,71,5],[72,2,72,5],[32,1,32,6],[34,2,34,5],[35,2,35,5],[36,2,36,5],[45,1,45,6],[47,2,47,5],[48,2,48,5],[49,2,49,5],[50,2,50,5],[85,2,85,5],[92,1,92,6],[94,2,94,5],[95,2,95,5],[96,2,96,5],[97,2,97,5],[98,2,98,5],[99,2,99,5],[103,1,103,6],[105,2,105,5],[106,2,106,5],[107,2,107,5],[108,2,108,5],[116,1,116,6],[118,2,118,5],[119,2,119,5],[120,2,120,5],[121,2,121,5],[122,2,122,5],[123,2,123,5],[124,2,124,5],[125,2,125,5],[126,2,126,5],[131,1,131,6],[133,2,133,5],[134,2,134,5],[135,2,135,5],[136,2,136,5],[137,2,137,5],[138,2,138,5],[139,2,139,5],[144,1,144,6],[146,2,146,5],[147,2,147,5],[236,2,236,5],[237,2,237,5],[157,1,157,3],[238,2,238,5],[239,2,239,5],[240,2,240,5],[241,2,241,5],[242,2,242,5],[243,2,243,5],[244,2,244,5],[245,2,245,5],[246,2,246,5],[247,2,247,5],[248,2,248,5],[249,2,249,5],[250,2,250,5],[251,2,251,5],[252,2,252,5],[253,2,253,5],[254,2,254,5],[255,2,255,5],[256,2,256,5],[257,2,257,5],[258,2,258,5],[259,2,259,5],[260,2,260,5],[261,2,261,5],[262,2,262,5],[263,2,263,5],[264,2,264,5],[265,2,265,5],[266,2,266,5],[267,2,267,5],[268,2,268,5],[269,2,269,5],[270,2,270,5],[271,2,271,5],[272,2,272,5],[273,2,273,5],[274,2,274,5],[275,2,275,5],[276,2,276,5],[277,2,277,5],[278,2,278,5],[279,2,279,5],[280,2,280,5],[281,2,281,5],[282,2,282,5],[283,2,283,5],[293,2,293,5],[294,2,294,5],[295,2,295,5],[296,2,296,5],[284,2,284,5],[285,2,285,5],[286,2,286,5],[287,2,287,5],[288,2,288,5],[289,2,289,5],[290,2,290,5],[291,2,291,5],[292,2,292,5]]}
[]
[]
[]
[]
[]
[]
[]
[]
[]
[]
[]
[]
[]
[]
[]
[]
[]
[]
[]
[]
[]
[]
[]
[]
[]
[]
[]
[]
[]
[]
[]
[]
[null,"Passo 01: Organizar-se para a Resiliência"]
[]
[null,"P.1.1",{"$f":"E174","v":"O plano diretor da cidade (ou plano / estratégia relevante) inclui abordagens para a redução do risco de desastres, e eles são aplicados de acordo com a Estrutura de Sendai?"},null,null,null,{"$f":"F174","v":0}]
[null,"P.1.2",{"$f":"E175","v":"Existe um mecanismo interinstitucional / setorial com a autoridade e recursos relevantes para abordar a redução do risco de desastres?"},null,null,null,{"$f":"F175","v":0}]
[null,"P.1.3","A resiliência está adequadamente integrada a outras funções essenciais / portfólios de projetos da cidade?",null,null,null,0]
[null,null,null,null,null,null,""]
[]
[]
[]
[]
[]
[]
[]
[null,"Passo 02: Identificar, Compreender e Usar Cenários de Risco Atuais e Futuros"]
[]
[null,"P.2.1",{"$f":"E177","v":"A cidade tem conhecimento das principais ameaças que enfrenta, assim como sua probabilidade de ocorrência?"},null,null,null,{"$f":"F177","v":0}]
[null,"P.2.2",{"$f":"E178","v":"Existe uma compreensão compartilhada do risco entre a cidade e os diferentes prestadores de serviços básicos e outras agências nacionais e regionais que desempenham algum papel na gestão de infra-estrutura, como eletricidade, água, estradas e trens, em termos de pontos de tensão nos sistemas e os riscos existentes na área da cidade?"},null,null,null,{"$f":"F178","v":0}]
[null,"P.2.3","Foram acordados cenários em que a exposição e a vulnerabilidade da cidade a cada ameaça ou grupos de ameaças são levantadas (veja o ponto anterior)?",null,null,null,0]
[null,"P.2.4","Existe um entendimento coletivo dos possíveis fracassos em cascata entre os diferentes sistemas da cidade e a infraestrutura sob diferentes cenários?",null,null,null,0]
[null,"P.2.5","Existem mapas claros sobre ameaças e dados sobre risco? Eles são atualizados regularmente?",null,null,null,0]
[]
[]
[]
[]
[]
[null,"Passo 03: Fortalecer a Capacidade Financeira para a Resiliência"]
[]
[null,"P.3.1",{"$f":"E182","v":"A cidade / agências principais compreendem todas as fontes de financiamento e os \"dividendos de resiliência\" estão bem inter-relacionados. Todos os caminhos disponíveis para atrair financiamento externo também são compreendidos e os fundos estão sendo ativamente procurados para fazer investimentos significativos em resiliência."},null,null,null,{"$f":"F182","v":0},null,null,null," "]
[null,"P.3.2",{"$f":"E183","v":"A cidade possui recursos e mecanismos protegidos específicos para fundos de contingência para redução do risco de desastres em nível local (mitigação, prevenção, resposta e recuperação)?"},null,null,null,{"$f":"F183","v":0}]
[null,"P.3.3","Que nível de cobertura existe em todos os diferentes setores da cidade - empresas, negócios e comunidade?",null,null,null,0]
[null,"P.3.4","Que incentivos existem para diferentes setores e segmentos de empresas e da sociedade, a fim de apoiar o aumento da resiliência?",null,null,null,0]
[null,null,null,null,null,null,""]
[]
[]
[]
[]
[]
[null,"Passo 04: Promover o Desenvolvimento Urbano Resiliente"]
[]
[null,"P.4.1",{"$f":"E186","v":"A cidade é adequadamente zoneada, levando em conta, por exemplo, o impacto de cenários de risco relevantes em atividades econômicas, produção agrícola e centros populacionais?"},null,null,null,{"$f":"F186","v":0}]
[null,"P.4.2",{"$f":"E187","v":"As abordagens são promovidas através da concepção e realização de um novo desenvolvimento urbano para promover a resiliência?"},null,null,null,{"$f":"F187","v":0}]
[null,"P.4.3","Existem códigos ou padrões de construção e, em caso afirmativo, eles abordam ameaças e riscos conhecidos e específicos da cidade? Esses padrões são atualizados regularmente?",null,null,null,0]
[null,"P.4.4","Eles são amplamente aplicados, adequadamente aplicados e as regras de zoneamento, códigos e padrões de construção são verificados?",null,null,null,0]
[]
[]
[]
[]
[]
[]
[null,"Passo 05: Proteger as Zonas Naturais de Amortização para melhorar as Funções de Proteção oferecidos pelos Ecossistemas Naturais   "]
[]
[null,"P.5.1.1",{"$f":"E190","v":"Além da consciência dos ativos naturais, a cidade compreende as funções (ou serviços) que esse capital natural oferece?"},null,null,null,{"$f":"F190","v":0}]
[null,"P.5.2",{"$f":"E191","v":"A infraestrutura verde e azul está sendo promovida através das políticas nos principais projetos de desenvolvimento e infraestrutura nas áreas urbanas?"},null,null,null,{"$f":"F191","v":0}]
[null,"P.5.3","A cidade está ciente dos serviços ecossistêmicos que estão sendo oferecidos a ela a partir do capital natural além de seus limites administrativos? Existem acordos com as administrações vizinhas para apoiar a proteção e o gerenciamento desses ativos?",null,null,null,0]
[]
[]
[]
[]
[]
[]
[null,"Passo 06: Fortalecer a Capacidade Institucional para a Resiliência"]
[]
[null,"P.6.1",{"$f":"E193","v":"A cidade tem um acesso óbvio a todas as habilidades e experiências que considera necessárias para reduzir o risco e responder aos cenários de desastre identificados?"},null,null,null,{"$f":"F193","v":0}]
[null,"P.6.2",{"$f":"E194","v":"Existe alguma campanha de educação ou devidamente coordenada público canais de relações e estruturada para garantir que as informações sobre ameaças, riscos e desastres (que pode ser compreendido e utilizado) está devidamente distribuída entre as mensagens públicas?"},null,null,null,{"$f":"F194","v":0}]
[null,"P.6.3","O grau de compartilhamento de informações sobre a resiliência da cidade com outras organizações envolvidas.",null,null,null,{"$f":"F195","v":0}]
[null,"P.6.4","Existem cursos de treinamento que cobrem aspectos de risco e resiliência e são oferecidos a todos os setores da cidade, como governo, empresas, ONGs e comunidades?",null,null,null,{"$f":"F196","v":0}]
[null,"P.6.5","Existe material de treinamento disponível na maioria das línguas comumente usadas na cidade?",null,null,null,0]
[null,"P.6.6","A cidade está procurando proativamente trocar conhecimento e aprender com outras cidades que enfrentam desafios semelhantes?",null,null,null,0]
[]
[]
[]
[null,"Passo 07:  Compreender e Fortalecer a Capacidade Societal para a Resiliência"]
[]
[null,"P.7.1",{"$f":"E199","v":"As organizações de base estão participando do planejamento antes de um evento de desastre e nas respostas subsequentes de cada bairro da cidade?"},null,null,null,{"$f":"F199","v":0}]
[null,"P.7.2",{"$f":"E200","v":"Existem programas de treinamento regularmente oferecidos aos grupos mais vulneráveis ​​e às populações carentes da cidade?"},null,null,null,{"$f":"F200","v":0}]
[null,"P.7.3","Que proporção das empresas tem um plano de continuidade de negócios devidamente documentado, que foi revisado nos últimos 18 meses?",null,null,null,0]
[null,"P.7.4","Quão eficaz é a cidade em termos de participação dos cidadãos e comunicações em relação à redução do risco de desastres?",null,null,null,0]
[]
[]
[]
[]
[]
[]
[]
[null,"Passo 08: Aumentar a Resiliência de Infraestruturas"]
[]
[null,"P.8.1",{"$f":"E203","v":"A resiliência da infraestrutura vital representa uma prioridade para a cidade? A cidade tem e executa um plano ou estratégia de infraestrutura vital?"},null,null,null,{"$f":"F203","v":0}]
[null,"P.8.2",{"$f":"E204","v":"A infraestrutura de proteção é bem projetada e construída, com base em informações sobre os riscos existentes?"},null,null,null,{"$f":"F204","v":0}]
[null,"P.8.3","Espera-se que experimente a perda significativa desses dois serviços essenciais em grande parte da cidade sob os cenários de desastre acordados?",null,null,null,0]
[null,"P.8.4","Espera-se que grande parte da cidade sofra uma perda considerável de serviços em um evento sob o \"pior cenário\"? Se houver falhas, os corredores da infraestrutura elétrica permanecerão seguros (ou seja, sem risco de vazamentos, sem riscos de eletrocussão, etc.)?",null,null,null,0]
[null,"P.8.5","Espera-se que grande parte da cidade experimente a perda considerável de serviços em um evento sob o cenário de \"no pior dos casos? Se houver falhas, os corredores da infraestrutura de transporte permanecerão utilizáveis ​​e seguros (isto é, sem risco de inundação, etc.)?",null,null,null,0]
[null,"P.8.6","Espera-se que uma grande parte da cidade venha a experimentar a perda considerável de serviços em um evento sob o cenário de \"no pior dos casos?",null,null,null,0,null,null," "]
[null,"P.8.7","Haveria capacidades desenvolvidas suficientes em cuidados de saúde para tratar as lesões graves previstas no \"pior cenário\"?",null,null,null,0]
[null,"P.8.8","Porcentagem de estruturas educacionais que correm o risco de sofrer danos nos cenários \"mais provável\" e \"mais grave\".",null,null,null,0]
[null,"P.8.9","Haveria equipamento suficiente para socorristas, com apoio militar ou civil, conforme necessário?",null,null,null,0]
[]
[]
[]
[]
[null,"Passo 09: Garantir uma Resposta Eficaz de Desastres"]
[]
[null,"P.9.1",{"$f":"E212","v":"A cidade tem um plano ou procedimento operacional padrão para agir após um aviso prévio e uma previsão?"},null,null,null,{"$f":"F212","v":0}]
[null,"P.9.2",{"$f":"E213","v":"Existe um plano de preparação / resposta a emergências / gestão de desastres que descreva a mitigação, preparação e resposta da cidade a emergências locais?"},null,null,null,{"$f":"F213","v":0}]
[null,"P.9.3","A autoridade de gestão de desastres tem capacidade de pessoal suficiente para suportar as tarefas dos socorristas no cenário de \"capacidade de reação\" no caso de um evento?",null,null,null,0]
[null,"P.9.4","As necessidades de equipamentos e suprimentos foram claramente definidas, assim como a disponibilidade de equipamentos?",null,null,null,0]
[null,"P.9.5","A cidade poderia continuar alimentando e abrigando a população depois de um desastre?",null,null,null,0]
[null,"P.9.6","Existe um centro de operações de emergência, com a participação de todas as agências, com procedimentos operacionais padronizados para automação, projetados especificamente para lidar com os cenários \"mais provável\" e \"mais severo\"?",null,null,null,0]
[null,"P.9.7","Incluem práticas e simulações para o público e profissionais de diferentes áreas?",null,null,null,0]
[]
[]
[]
[]
[null,"Passo 10: Acelerar a Recuperação e Reconstruir Melhor"]
[]
[null,"P.10.1",{"$f":"E219","v":"Existe um processo ou estratégia de recuperação e reconstrução após um evento, incluindo reativação econômica, aspectos sociais etc.?"},null,null,null,{"$f":"F219","v":0}]
[null,"P.10.2",{"$f":"E220","v":"Os processos de avaliação pós-desastre incorporam a análise de falhas e a capacidade de capturar lições aprendidas que são então incorporadas ao projeto e execução de projetos de reconstrução?"},null,null,null,{"$f":"F220","v":0},null," "]
[null,null,null,null,null,null,""]
[null,null,null,null,null,null,""]
[]
[]
[]
[]
[]
[]
[]
[null,{"$f":"TODAY()","v":"2018-07-03"}]
[]
[]
[null,null,"Legenda","Name",null,"Passos","ScoreTotal","MaxScore","Legenda"]
[null,null,"S1","1.   Organizar-se para a Resiliência",null,"E1",{"$f":"SUMIFS($F$131:$F$1098,$B$131:$B$1098,F162)","v":0},{"$f":"COUNTIFS($B$174:$B$220,F162)*3","v":9},1]
[null,null,"S2","2.   Identificar, Compreender e Usar Cenários de Risco Atuais e Futuros",null,"E2",0,15,2]
[null,null,"S3","3.   Fortalecer a Capacidade Financeira para a Resiliência",null,"E3",0,12,3]
[null,null,"S4","4.   Promover o Desenvolvimento Urbano Resiliente",null,"E4",0,12,4]
[null,null,"S5","5.   Proteger as Zonas Naturais de Amortização para melhorar as Funções de Proteção oferecidos pelos Ecossistemas Naturais ",null,"E5",0,9,5]
[null,null,"S6","6.   Fortalecer a Capacidade Institucional para a Resiliência",null,"E6",0,18,6]
[null,null,"S7","7.   Compreender e Fortalecer a Capacidade Societal para a Resiliência",null,"E7",0,12,7,{"$f":"SUM(G162:G171)","v":0},{"$f":"J168/J169","v":0},{"$f":"CONCATENATE(\"A pontuação geral para esta avaliação é \",SUM(G162:G171),\" / \",SUM(H162:H171))","v":"A pontuação geral para esta avaliação é 0 / 141"}]
[null,null,"S8","8.   Aumentar a Resiliência de Infraestruturas",null,"E8",0,27,8,{"$f":"SUM(H162:H171)","v":141},{"$f":"1-K168","v":1}]
[null,null,"S9","9.   Garantir uma Resposta Eficaz de Desastres",null,"E9",0,21,9]
[null,null,"S10","10. Acelerar a Recuperação e Reconstruir Melhor",null,"E10",0,6,10]
[]
[null,"Seção","Referência",null,"Pergunta","ScoreSelecionado","EsteScore"]
[null,"E1","P1.1",null,"O plano diretor da cidade (ou plano / estratégia relevante) inclui abordagens para a redução do risco de desastres, e eles são aplicados de acordo com a Estrutura de Sendai?",{"$f":"IF(G174=\"\",0,IF(G174=0,0,4-G174))","v":0},{"$f":"'E1'!E9","v":0}]
[null,"E1","P1.2",null,"Existe um mecanismo interinstitucional / setorial com a autoridade e recursos relevantes para abordar a redução do risco de desastres?",{"$f":"IF(G175=\"\",0,IF(G175=0,0,4-G175))","v":0},{"$f":"'E1'!E20","v":0}]
[null,"E1","P1.3",null,"A resiliência está adequadamente integrada a outras funções essenciais / portfólios de projetos da cidade?",0,{"$f":"'E1'!E31","v":0}]
[null,"E2","P2.1",null,"A cidade tem conhecimento das principais ameaças que enfrenta, assim como sua probabilidade de ocorrência?",0,{"$f":"'E2'!E9","v":0}]
[null,"E2","P2.2",null,"Existe uma compreensão compartilhada do risco entre a cidade e os diferentes prestadores de serviços básicos e outras agências nacionais e regionais que desempenham algum papel na gestão de infra-estrutura, como eletricidade, água, estradas e trens, em termos de pontos de tensão nos sistemas e os riscos existentes na área da cidade?",0,{"$f":"'E2'!E20","v":0}]
["Sessão","E2","P2.3",null,"Foram acordados cenários em que a exposição e a vulnerabilidade da cidade a cada ameaça ou grupos de ameaças são levantadas (veja o ponto anterior)?",0,{"$f":"'E2'!E31","v":0}]
["E1","E2","P2.4",null,"Existe um entendimento coletivo dos possíveis fracassos em cascata entre os diferentes sistemas da cidade e a infraestrutura sob diferentes cenários?",0,{"$f":"'E2'!E42","v":0}]
["E1","E2","P2.5",null,"Existem mapas claros sobre ameaças e dados sobre risco? Eles são atualizados regularmente?",0,{"$f":"'E2'!E53","v":0}]
["E1","E3","P3.1",null,"A cidade / agências principais compreendem todas as fontes de financiamento e os \"dividendos de resiliência\" estão bem inter-relacionados. Todos os caminhos disponíveis para atrair financiamento externo também são compreendidos e os fundos estão sendo ativamente procurados para fazer investimentos significativos em resiliência.",0,{"$f":"'E3'!E9","v":0}]
["E1","E3","P3.2",null,"A cidade possui recursos e mecanismos protegidos específicos para fundos de contingência para redução do risco de desastres em nível local (mitigação, prevenção, resposta e recuperação)?",0,{"$f":"'E3'!E20","v":0}]
["E1","E3","P3.3",null,"Que nível de cobertura existe em todos os diferentes setores da cidade - empresas, negócios e comunidade?",0,{"$f":"'E3'!E31","v":0}]
["E1","E3","P3.4",null,"Que incentivos existem para diferentes setores e segmentos de empresas e da sociedade, a fim de apoiar o aumento da resiliência?",0,{"$f":"'E3'!E42","v":0}]
["E1","E4","P4.1",null,"A cidade é adequadamente zoneada, levando em conta, por exemplo, o impacto de cenários de risco relevantes em atividades econômicas, produção agrícola e centros populacionais?",0,{"$f":"'E4'!E9","v":0}]
["E1","E4","P4.2",null,"As abordagens são promovidas através da concepção e realização de um novo desenvolvimento urbano para promover a resiliência?",0,{"$f":"'E4'!E20","v":0}]
["E1","E4","P4.3",null,"Existem códigos ou padrões de construção e, em caso afirmativo, eles abordam ameaças e riscos conhecidos e específicos da cidade? Esses padrões são atualizados regularmente?",0,{"$f":"'E4'!E31","v":0}]
["E2","E4","P4.4",null,"Eles são amplamente aplicados, adequadamente aplicados e as regras de zoneamento, códigos e padrões de construção são verificados?",0,{"$f":"'E4'!E42","v":0}]
["E2","E5","P5.1",null,"Além da consciência dos ativos naturais, a cidade compreende as funções (ou serviços) que esse capital natural oferece?",0,{"$f":"'E5'!E9","v":0}]
["E2","E5","P5.2",null,"A infraestrutura verde e azul está sendo promovida através das políticas nos principais projetos de desenvolvimento e infraestrutura nas áreas urbanas?",0,{"$f":"'E5'!E20","v":0}]
["E2","E5","P5.3",null,"A cidade está ciente dos serviços ecossistêmicos que estão sendo oferecidos a ela a partir do capital natural além de seus limites administrativos? Existem acordos com as administrações vizinhas para apoiar a proteção e o gerenciamento desses ativos?",0,{"$f":"'E5'!E31","v":0}]
["E2","E6","P6.1",null,"A cidade tem um acesso óbvio a todas as habilidades e experiências que considera necessárias para reduzir o risco e responder aos cenários de desastre identificados?",0,{"$f":"'E6'!E9","v":0}]
["E2","E6","P6.2",null,"Existe alguma campanha de educação ou devidamente coordenada público canais de relações e estruturada para garantir que as informações sobre ameaças, riscos e desastres (que pode ser compreendido e utilizado) está devidamente distribuída entre as mensagens públicas?",0,{"$f":"'E6'!E20","v":0}]
["E3","E6","P6.3",null,"O grau de compartilhamento de informações sobre a resiliência da cidade com outras organizações envolvidas.",0,{"$f":"'E6'!E31","v":0}]
["E3","E6","P6.4",null,"Existem cursos de treinamento que cobrem aspectos de risco e resiliência e são oferecidos a todos os setores da cidade, como governo, empresas, ONGs e comunidades?",0,{"$f":"'E6'!E42","v":0}]
["E3","E6","P6.5",null,"Existe material de treinamento disponível na maioria das línguas comumente usadas na cidade?",0,{"$f":"'E6'!E53","v":0}]
["E3","E6","P6.6",null,"A cidade está procurando proativamente trocar conhecimento e aprender com outras cidades que enfrentam desafios semelhantes?",0,{"$f":"'E6'!E64","v":0}]
["E3","E7","P7.1",null,"As organizações de base estão participando do planejamento antes de um evento de desastre e nas respostas subsequentes de cada bairro da cidade?",0,{"$f":"'E7'!E9","v":0}]
["E3","E7","P7.2",null,"Existem programas de treinamento regularmente oferecidos aos grupos mais vulneráveis ​​e às populações carentes da cidade?",0,{"$f":"'E7'!E20","v":0}]
["E3","E7","P7.3",null,"Que proporção das empresas tem um plano de continuidade de negócios devidamente documentado, que foi revisado nos últimos 18 meses?",0,{"$f":"'E7'!E31","v":0}]
["E3","E7","P7.4",null,"Quão eficaz é a cidade em termos de participação dos cidadãos e comunicações em relação à redução do risco de desastres?",0,{"$f":"'E7'!E42","v":0}]
["E3","E8","P8.1",null,"A resiliência da infraestrutura vital representa uma prioridade para a cidade? A cidade tem e executa um plano ou estratégia de infraestrutura vital?",0,{"$f":"'E8'!E9","v":0}]
["E3","E8","P8.2",null,"A infraestrutura de proteção é bem projetada e construída, com base em informações sobre os riscos existentes?",0,{"$f":"'E8'!E20","v":0}]
["E4","E8","P8.3",null,"Espera-se que experimente a perda significativa desses dois serviços essenciais em grande parte da cidade sob os cenários de desastre acordados?",0,{"$f":"'E8'!E31","v":0}]
["E4","E8","P8.4",null,"Espera-se que grande parte da cidade sofra uma perda considerável de serviços em um evento sob o \"pior cenário\"? Se houver falhas, os corredores da infraestrutura elétrica permanecerão seguros (ou seja, sem risco de vazamentos, sem riscos de eletrocussão, etc.)?",0,{"$f":"'E8'!E42","v":0}]
["E4","E8","P8.5",null,"Espera-se que grande parte da cidade experimente a perda considerável de serviços em um evento sob o cenário de \"no pior dos casos? Se houver falhas, os corredores da infraestrutura de transporte permanecerão utilizáveis ​​e seguros (isto é, sem risco de inundação, etc.)?",0,{"$f":"'E8'!E53","v":0}]
["E4","E8","P8.6",null,"Espera-se que uma grande parte da cidade venha a experimentar a perda considerável de serviços em um evento sob o cenário de \"no pior dos casos?",0,{"$f":"'E8'!E64","v":0}]
["E4","E8","P8.7",null,"Haveria capacidades desenvolvidas suficientes em cuidados de saúde para tratar as lesões graves previstas no \"pior cenário\"?",0,{"$f":"'E8'!E75","v":0}]
["E4","E8","P8.8",null,"Porcentagem de estruturas educacionais que correm o risco de sofrer danos nos cenários \"mais provável\" e \"mais grave\".",0,{"$f":"'E8'!E86","v":0}]
["E4","E8","P8.9",null,"Haveria equipamento suficiente para socorristas, com apoio militar ou civil, conforme necessário?",0,{"$f":"'E8'!E97","v":0}]
["E4","E9","P9.1",null,"A cidade tem um plano ou procedimento operacional padrão para agir após um aviso prévio e uma previsão?",0,{"$f":"'E9'!E9","v":0}]
["E4","E9","P9.2",null,"Existe um plano de preparação / resposta a emergências / gestão de desastres que descreva a mitigação, preparação e resposta da cidade a emergências locais?",0,{"$f":"'E9'!E20","v":0}]
["E4","E9","P9.3",null,"A autoridade de gestão de desastres tem capacidade de pessoal suficiente para suportar as tarefas dos socorristas no cenário de \"capacidade de reação\" no caso de um evento?",0,{"$f":"'E9'!E31","v":0}]
["E5","E9","P9.4",null,"As necessidades de equipamentos e suprimentos foram claramente definidas, assim como a disponibilidade de equipamentos?",0,{"$f":"'E9'!E42","v":0}]
["E5","E9","P9.5",null,"A cidade poderia continuar alimentando e abrigando a população depois de um desastre?",0,{"$f":"'E9'!E53","v":0}]
["E5","E9","P9.6",null,"Existe um centro de operações de emergência, com a participação de todas as agências, com procedimentos operacionais padronizados para automação, projetados especificamente para lidar com os cenários \"mais provável\" e \"mais severo\"?",0,{"$f":"'E9'!E64","v":0}]
["E5","E9","P9.7",null,"Incluem práticas e simulações para o público e profissionais de diferentes áreas?",0,{"$f":"'E9'!E75","v":0}]
["E5","E10","P10.1",null,"Existe um processo ou estratégia de recuperação e reconstrução após um evento, incluindo reativação econômica, aspectos sociais etc.?",0,{"$f":"'E10'!E9","v":0}]
["E5","E10","P10.2",null,"Os processos de avaliação pós-desastre incorporam a análise de falhas e a capacidade de capturar lições aprendidas que são então incorporadas ao projeto e execução de projetos de reconstrução?",0,{"$f":"'E10'!E20","v":0}]
["E6"]
["E6"]
["E6"]
["E6"]
["E6"]
["E6"]
["E6"]
["E6"]
["E6"]
["E6"]
["E6"]
["E6"]
["E6"]
["E7"]
["E7"]
["E7"]
["E7","7.2.1","Conexão social e coesão da vizinhança",null,null,null,0,""]
["E7","7.2.2","Envolvimento de grupos vulneráveis da população",null,null,null,0,""]
["E7","7.3.1","A medida em que os empregadores atuam como um canal com funcionários",null,null,null,0,""]
["E7","7.3.2","Planejamento de continuidade do negócio",null,null,null,0,""]
["E7","7.4.1","Frequência do envolvimento",null,null,null,0,""]
["E7","7.4.2","Uso de \"sistemas de envolvimento\" móveis e de e-mail para permitir aos cidadãos receber e dar atualizações antes e depois de um desastre",null,null,null,0,""]
["E7","7.4.3","Validação da eficácia da educação",null,null,null,0,""]
["E8","8.1.1","Adequação da infraestrutura de proteção (os ecossistemas podem oferecer um amortecimento natural - ver Passo 5)",null,null,null,0,""]
["E8","8.1.2","Eficácia da manutenção",null,null,null,0,""]
["E8","8.2.1","Dias do serviço ao cliente em risco de perda",null,null,null,0,""]
["E8","8.2.2","Dias de serviço de ativos críticos designados (por exemplo, serviço para hospitais ou outros ativos críticos) em risco de perda de água ou saneamento",null,null,null,0,""]
["E8","8.2.3","Custo da restauração do serviço",null,null,null,0,""]
["E8","8.3.1","Dias do serviço ao cliente em risco de perda",null,null,null,0,""]
["E8","8.3.2","Dias de serviço de ativos críticos designados em risco de perda por falha de energia",null,null,null,0,""]
["E8","8.3.3","Custo de restauração",null,null,null,0,""]
["E8","8.4.1","Segurança e integridade do sistema de gás (se aplicável)",null,null,null,0,""]
["E8","8.4.2","Dias do serviço ao cliente em risco de perda",null,null,null,0,""]
["E8","8.4.3","Dias de serviço de ativos críticos designados em risco de perda por falha no fornecimento de gás",null,null,null,0,""]
["E8","8.4.4"," Custo da restauração do serviço",null,null,null,0,""]
["E8","8.5.1","Estrada - serviço do sistema rodoviário em risco de perda",null,null,null,0,""]
["E8","8.5.2","Estrada - sobrevivência de acesso crítico e rotas de evacuação",null,null,null,0,""]
["E8","8.5.3","Ferroviário / metro (se aplicável) - serviço do sistema ferroviário em risco de perda",null,null,null,0,""]
["E8","8.5.4","Ar (se aplicável)",null,null,null,0,""]
["E8","8.5.5","Rio / Mar (se aplicável)",null,null,null,0,""]
["E8","8.5.6","Outros transportes públicos (se aplicável)",null,null,null,0,""]
["E8","8.5.7","Custo da restauração do serviço (todas as rotas de transporte)",null,null,null,0,""]
["E8","8.6.1","Dias de serviço em risco de perda",null,null,null,0,""]
["E8","8.6.2","Dias de serviço de ativos críticos designados em risco de perda por falha de comunicação",null,null,null,0,""]
["E8","8.6.3","Custo de restauração",null,null,null,0,""]
["E8","8.7.1","Segurança estrutural e resiliência de desastres de cuidados de saúde e instalações de emergência. (Pessoal / primeiros socorros - ver Passo 9)",null,null,null,0,""]
["E8","8.7.1.1","Segurança estrutural e resiliência de desastres de cuidados de saúde e instalações de emergência. (Pessoal / primeiros socorros - ver Passo 9)",null,null,null,0,""]
["E8","8.7.2","Registros e dados de saúde",null,null,null,0,""]
["E8","8.7.3","Disponibilidade de cuidados de saúde de emergência, incluindo instalações e suprimentos médicos urgentes para necessidades agudas",null,null,null,0,""]
["E8","8.8.1","Segurança estrutural das instalações educativas",null,null,null,0,""]
["E8","8.8.2","Perda de tempo de ensino",null,null,null,0,""]
["E8","8.8.3","Dados de educação",null,null,null,0,""]
["E8","8.9.1","Resiliência a desastres no sistema prisional",null,null,null,0,""]
["E8","8.10.1","Garantia de continuidade de todas as funções críticas de administração",null,null,null,0,""]
["E8","8.11.1","Garantia de continuidade de sistemas informáticos e dados críticos para a continuidade do governo",null,null,null,0,""]
["E8","8.11.2","Garantia de continuidade de sistemas informáticos e dados críticos para qualquer infraestrutura acima",null,null,null,0,""]
["E9","9.1.1","Existência e eficácia dos sistemas de alerta precoce",null,null,null,0,""]
["E9","9.1.1.1","Alcance do aviso",null,null,null,0,""]
["E9","9.2.1","Existência de planos de resposta de emergência que integram profissionais de resposta e organizações comunitárias. (Para resposta pós-evento - veja Passo 10).",null,null,null,0,""]
["E9","9.3.1","Capacidade de \"sobretensão\" da polícia também para apoiar os deveres dos primeiros respondentes",null,null,null,0,""]
["E9","9.3.2","Definição de outras necessidades de primeiro respondente e outras necessidades de pessoal e disponibilidade",null,null,null,0,""]
["E9","9.4.1","Definição de necessidades de equipamentos e suprimentos e disponibilidade de equipamentos",null,null,null,0,""]
["E9","9.4.1.1","Definição de necessidades de equipamentos e suprimentos e disponibilidade de equipamentos",null,null,null,0,""]
["E9","9.5.1","Possibilidade de continuar a alimentar a população",null,null,null,0,""]
["E9","9.5.2","Possibilidade de satisfazer as necessidades de abrigo / lugares seguros",null,null,null,0,""]
["E9","9.5.2.1","Possibilidade de satisfazer as necessidades de abrigo / lugares seguros",null,null,null,0,""]
["E9","9.5.3","Capacidade de satisfazer as prováveis necessidades de produtos básicos",null,null,null,0,""]
["E9","9.5.4"," Disponibilidade provável de combustível",null,null,null,0,""]
["E9","9.6.1","Interoperabilidade com cidades vizinhas / estados e outros níveis de governo de sistemas e procedimentos críticos",null,null,null,0,""]
["E9","9.6.2","Centro de operações de emergência",null,null,null,0,""]
["E9","9.6.3","Coordenação da recuperação pós-evento",null,null,null,0,""]
["E9","9.7.1","Práticas e ensaios - envolvendo público e profissional",null,null,null,0,""]
["E9","9.7.2","Eficácia de ensino e treinamento",null,null,null,0,""]
["E10","10.1.1","Planejando a recuperação pós-evento e a reinicialização econômica",null,null,null,0,""]
["E10","10.1.2","Grau em que houve consulta de partes interessadas em torno dos planos de \"recuperação e reinicialização de eventos\"",null,null,null,0,""]
["E10","10.1.3","Arranjos financeiros secretos para processar a ajuda recebida e desembolsar fundos ",null,null,null,0,""]
["E10","10.2.1","Laços de aprendizagem",null,null,null,0,""]

{"sheet":"SOBRE","index":13,"n_rows":357,"n_cols":8,"rows_kept":357,"cut":false,"hidden":false,"merged":[[2,1,2,3],[354,2,354,5],[355,2,355,5],[356,2,356,5],[346,2,346,5],[347,2,347,5],[348,2,348,5],[349,2,349,5],[350,2,350,5],[351,2,351,5],[352,2,352,5],[353,2,353,5]]}
[]
[]
[null,"Scorecard de Resiliência a Desastres para Cidades - Ferramenta de Avaliação de Nível Preliminar, v. 1.0. \n© UNISDR, 2017."]
[]
[]
[null,"Reconhecimentos"]
[null,"• A IBM e a AECOM, que são membros do Grupo Consultivo do Setor Privado da UNISDR (PSAG), co-criaram o Scorecard  de Resiliência a Desastres para Cidades que foi lançado em 2014 e colaboraram novamente para produzir a versão 2 do Scorecard lançada em abril de 2015, em Sendai."]
[null,"• Várias cidades apoiaram o apuramento oficial do Scorecard; Os comentários dessas cidades complementaram esta versão. Agradecemos aos campeões de resiliência nas seguintes cidades: Greater Manchester e Stoke-on-Trent, Reino Unido; Amadora e Lisboa, Portugal; Jonkoping e Arvika, Suécia; Bugaba, Panamá; Kisumu, Quênia; Aqaba, Jordânia; Yogyakarta, Indonésia; Makati, Filipinas e Islamabad, Paquistão. Diversas outras cidades completaram as avaliações do Scorecard e desenvolveram o plano de ação. Este feedback também foi considerado como parte desta atualização do Scorecard."]
[null,"• O Centro de Soluções de Clima e Energia (C2ES), com a IBM e a AECOM, realizou uma série de oficinas nas cidades dos EUA (Anchorage, AK; Providence, RI; Miami,  FL; Cidade do Kansas, MO; Fênix, AZ). Aprender com estas oficinas complementou a atualização do Scorecard."]
[null,"• A UNISDR reuniu um grande grupo de trabalho para desenvolver indicadores que formaram a parte essencial do Scorecard. Graças a todo o grupo de trabalho composto por: Arghya Sinha Roy, ADB; Katy Vines, cidades C40; Sarah Hendel-Blackford, Ecofys; Ben Smith, AECOM; Mark Harvey, Resurgência; Esteban Leon, UN Habitat; Stefan Kohler, UNOPS; Hugh Macleman, OCDE; Cassidy Johnston, UCL; Mostafa Mohaghegh, IFRC; Ebru Gencer, CUDRR; Jair Torres e Margherita Fanchiotti, UNESCO; Margaret Arnold, Banco Mundial; e Christopher G. Burton, modelo de terremoto global."]
[]
[]
[]
[]
[]
[]
[]
[]
[]
[]
[]
[]
[]
[]
[]
[]
[]
[]
[]
[]
[]
[]
[]
[]
[]
[]
[]
[]
[]
[]
[]
[]
[]
[]
[]
[]
[]
[]
[]
[]
[]
[]
[]
[]
[]
[]
[]
[]
[]
[]
[]
[]
[]
[]
[]
[]
[]
[]
[]
[]
[]
[]
[]
[]
[]
[]
[]
[]
[]
[]
[]
[]
[]
[]
[]
[]
[]
[]
[]
[]
[]
[]
[]
[]
[]
[]
[]
[]
[]
[]
[]
[]
[]
[]
[]
[]
[]
[]
[]
[]
[]
[]
[]
[]
[]
[]
[]
[]
[]
[]
[]
[]
[]
[]
[]
[]
[]
[]
[]
[]
[]
[]
[]
[]
[]
[]
[]
[]
[]
[]
[]
[]
[]
[]
[]
[]
[]
[]
[]
[]
[]
[]
[]
[]
[]
[]
[]
[]
[]
[]
[]
[]
[]
[]
[]
[]
[]
[]
[]
[]
[]
[]
[]
[]
[]
[]
[]
[]
[]
[]
[]
[]
[]
[]
[]
[]
[]
[]
[]
[]
[]
[]
[]
[]
[]
[]
[]
[]
[]
[]
[]
[]
[]
[]
[]
[]
[]
[]
[]
[]
[]
[]
[]
[]
[]
[]
[]
[]
[]
[]
[]
[]
[]
[]
[]
[]
[]
[]
[]
[]
[]
[]
[]
[]
[]
[]
[]
[]
[]
[]
[]
[]
[]
[]
[]
[]
[]
[]
[]
[]
[]
[]
[]
[]
[]
[]
[]
[]
[]
[]
[]
[]
[]
[]
[]
[]
[]
[]
[]
[]
[]
[]
[]
[]
[]
[]
[]
[]
[]
[]
[]
[]
[]
[]
[]
[]
[]
[]
[]
[]
[]
[]
[]
[]
[]
[]
[]
[]
[]
[]
[]
[]
[]
[]
[]
[]
[]
[]
[]
[]
[]
[]
[]
[]
[]
[]
[]
[]
[]
[]
[]
[]
[]
[]
[]
[]
[]
[]
[]
[]
[]
[]
[]
[]
[]
[]
[]
[]
[]
[]
[]
[]
[]
[]
[]
[]
["E9","9.5.3","Capacidade de satisfazer as prováveis necessidades de produtos básicos",null,null,null,0,""]
["E9","9.5.4"," Disponibilidade provável de combustível",null,null,null,0,""]
["E9","9.6.1","Interoperabilidade com cidades vizinhas / estados e outros níveis de governo de sistemas e procedimentos críticos",null,null,null,0,""]
["E9","9.6.2","Centro de operações de emergência",null,null,null,0,""]
["E9","9.6.3","Coordenação da recuperação pós-evento",null,null,null,0,""]
["E9","9.7.1","Práticas e ensaios - envolvendo público e profissional",null,null,null,0,""]
["E9","9.7.2","Eficácia de ensino e treinamento",null,null,null,0,""]
["E10","10.1.1","Planejando a recuperação pós-evento e a reinicialização econômica",null,null,null,0,""]
["E10","10.1.2","Grau em que houve consulta de partes interessadas em torno dos planos de \"recuperação e reinicialização de eventos\"",null,null,null,0,""]
["E10","10.1.3","Arranjos financeiros secretos para processar a ajuda recebida e desembolsar fundos ",null,null,null,0,""]
["E10","10.2.1","Laços de aprendizagem",null,null,null,0,""]